Workbook

Sheet AVISO LEGAL
H2: Fecha de actualización: | J2: 2020-05-12
J23: www.ree.es

Sheet Producible mes
O1: 31
M4: Concepto
M5: Horizonte temporal
M6: Periodo
C8: Ene. | D8: Feb. | E8: Mar. | F8: Abr. | G8: May. | H8: Jun. | I8: Jul. | J8: Ago. | K8: Sep. | L8: Oct. | M8: Nov. | N8: Dic. | O8: =OFFSET(Año!B2,($O$1-1),0) -> 2020
B10: Producible hidráulico (GWh) | C10: =OFFSET('Datos hidraulicos'!C3,0,($O$1-1)*13) -> 4477.65934 | D10: =OFFSET('Datos hidraulicos'!D3,0,($O$1-1)*13) -> 2923.6457 | E10: =OFFSET('Datos hidraulicos'!E3,0,($O$1-1)*13) -> 3739.249772 | F10: =OFFSET('Datos hidraulicos'!F3,0,($O$1-1)*13) -> 4421.344742 | G10: =OFFSET('Datos hidraulicos'!G3,0,($O$1-1)*13) -> - | H10: =OFFSET('Datos hidraulicos'!H3,0,($O$1-1)*13) -> - | I10: =OFFSET('Datos hidraulicos'!I3,0,($O$1-1)*13) -> - | J10: =OFFSET('Datos hidraulicos'!J3,0,($O$1-1)*13) -> - | K10: =OFFSET('Datos hidraulicos'!K3,0,($O$1-1)*13) -> - | L10: =OFFSET('Datos hidraulicos'!L3,0,($O$1-1)*13) -> - | M10: =OFFSET('Datos hidraulicos'!M3,0,($O$1-1)*13) -> - | N10: =OFFSET('Datos hidraulicos'!N3,0,($O$1-1)*13) -> - | O10: =OFFSET('Datos hidraulicos'!O3,0,($O$1-1)*13) -> 15561.89955
B11: Índice mes | C11: =OFFSET('Datos hidraulicos'!C4,0,($O$1-1)*13) -> 1.197582575 | D11: =OFFSET('Datos hidraulicos'!D4,0,($O$1-1)*13) -> 0.8193586754 | E11: =OFFSET('Datos hidraulicos'!E4,0,($O$1-1)*13) -> 0.910087594 | F11: =OFFSET('Datos hidraulicos'!F4,0,($O$1-1)*13) -> 1.139727677 | G11: =OFFSET('Datos hidraulicos'!G4,0,($O$1-1)*13) -> - | H11: =OFFSET('Datos hidraulicos'!H4,0,($O$1-1)*13) -> - | I11: =OFFSET('Datos hidraulicos'!I4,0,($O$1-1)*13) -> - | J11: =OFFSET('Datos hidraulicos'!J4,0,($O$1-1)*13) -> - | K11: =OFFSET('Datos hidraulicos'!K4,0,($O$1-1)*13) -> - | L11: =OFFSET('Datos hidraulicos'!L4,0,($O$1-1)*13) -> - | M11: =OFFSET('Datos hidraulicos'!M4,0,($O$1-1)*13) -> - | N11: =OFFSET('Datos hidraulicos'!N4,0,($O$1-1)*13) -> - | O11: =OFFSET('Datos hidraulicos'!O4,0,($O$1-1)*13) -> 1.017443688
B12: Probabilidad de ser superado (%) | C12: =OFFSET('Datos hidraulicos'!C5,0,($O$1-1)*13) -> 23.87102752 | D12: =OFFSET('Datos hidraulicos'!D5,0,($O$1-1)*13) -> 59.94274294 | E12: =OFFSET('Datos hidraulicos'!E5,0,($O$1-1)*13) -> 59.40465279 | F12: =OFFSET('Datos hidraulicos'!F5,0,($O$1-1)*13) -> 48.13718928 | G12: =OFFSET('Datos hidraulicos'!G5,0,($O$1-1)*13) -> - | H12: =OFFSET('Datos hidraulicos'!H5,0,($O$1-1)*13) -> - | I12: =OFFSET('Datos hidraulicos'!I5,0,($O$1-1)*13) -> - | J12: =OFFSET('Datos hidraulicos'!J5,0,($O$1-1)*13) -> - | K12: =OFFSET('Datos hidraulicos'!K5,0,($O$1-1)*13) -> - | L12: =OFFSET('Datos hidraulicos'!L5,0,($O$1-1)*13) -> - | M12: =OFFSET('Datos hidraulicos'!M5,0,($O$1-1)*13) -> - | N12: =OFFSET('Datos hidraulicos'!N5,0,($O$1-1)*13) -> - | O12: =OFFSET('Datos hidraulicos'!O5,0,($O$1-1)*13) -> 49.01449964

Sheet Producible año
L1: 4
J4: Concepto
J5: Horizonte temporal
J6: Periodo
C8: =OFFSET('Datos hidraulicos'!C17,0,($L$1-1)*10) -> 2020 | D8: =OFFSET('Datos hidraulicos'!D17,0,($L$1-1)*10) -> 2021 | E8: =OFFSET('Datos hidraulicos'!E17,0,($L$1-1)*10) -> 2022 | F8: =OFFSET('Datos hidraulicos'!F17,0,($L$1-1)*10) -> 2023 | G8: =OFFSET('Datos hidraulicos'!G17,0,($L$1-1)*10) -> 2024 | H8: =OFFSET('Datos hidraulicos'!H17,0,($L$1-1)*10) -> 2025 | I8: =OFFSET('Datos hidraulicos'!I17,0,($L$1-1)*10) -> 2026 | J8: =OFFSET('Datos hidraulicos'!J17,0,($L$1-1)*10) -> 2027 | K8: =OFFSET('Datos hidraulicos'!K17,0,($L$1-1)*10) -> 2028 | L8: =OFFSET('Datos hidraulicos'!L17,0,($L$1-1)*10) -> 2029
B10: Producible hidráulico (GWh) | C10: =OFFSET('Datos hidraulicos'!C18,0,($L$1-1)*10) -> 15561.89955 | D10: =OFFSET('Datos hidraulicos'!D18,0,($L$1-1)*10) -> - | E10: =OFFSET('Datos hidraulicos'!E18,0,($L$1-1)*10) -> - | F10: =OFFSET('Datos hidraulicos'!F18,0,($L$1-1)*10) -> - | G10: =OFFSET('Datos hidraulicos'!G18,0,($L$1-1)*10) -> - | H10: =OFFSET('Datos hidraulicos'!H18,0,($L$1-1)*10) -> - | I10: =OFFSET('Datos hidraulicos'!I18,0,($L$1-1)*10) -> - | J10: =OFFSET('Datos hidraulicos'!J18,0,($L$1-1)*10) -> - | K10: =OFFSET('Datos hidraulicos'!K18,0,($L$1-1)*10) -> - | L10: =OFFSET('Datos hidraulicos'!L18,0,($L$1-1)*10) -> -
B11: Índice mes | C11: =OFFSET('Datos hidraulicos'!C19,0,($L$1-1)*10) -> 1.017443688 | D11: =OFFSET('Datos hidraulicos'!D19,0,($L$1-1)*10) -> - | E11: =OFFSET('Datos hidraulicos'!E19,0,($L$1-1)*10) -> - | F11: =OFFSET('Datos hidraulicos'!F19,0,($L$1-1)*10) -> - | G11: =OFFSET('Datos hidraulicos'!G19,0,($L$1-1)*10) -> - | H11: =OFFSET('Datos hidraulicos'!H19,0,($L$1-1)*10) -> - | I11: =OFFSET('Datos hidraulicos'!I19,0,($L$1-1)*10) -> - | J11: =OFFSET('Datos hidraulicos'!J19,0,($L$1-1)*10) -> - | K11: =OFFSET('Datos hidraulicos'!K19,0,($L$1-1)*10) -> - | L11: =OFFSET('Datos hidraulicos'!L19,0,($L$1-1)*10) -> -
B12: Probabilidad de ser superado (%) | C12: =OFFSET('Datos hidraulicos'!C20,0,($L$1-1)*10) -> 49.01449964 | D12: =OFFSET('Datos hidraulicos'!D20,0,($L$1-1)*10) -> - | E12: =OFFSET('Datos hidraulicos'!E20,0,($L$1-1)*10) -> - | F12: =OFFSET('Datos hidraulicos'!F20,0,($L$1-1)*10) -> - | G12: =OFFSET('Datos hidraulicos'!G20,0,($L$1-1)*10) -> - | H12: =OFFSET('Datos hidraulicos'!H20,0,($L$1-1)*10) -> - | I12: =OFFSET('Datos hidraulicos'!I20,0,($L$1-1)*10) -> - | J12: =OFFSET('Datos hidraulicos'!J20,0,($L$1-1)*10) -> - | K12: =OFFSET('Datos hidraulicos'!K20,0,($L$1-1)*10) -> - | L12: =OFFSET('Datos hidraulicos'!L20,0,($L$1-1)*10) -> -
B14: =IF(MONTH(FACT)=1,"Datos acumulados a 31 de diciembre.",CONCATENATE("Datos acumulados a 31 de diciembre. Para el año ",YEAR(FACT), " datos acumulados a ",TEXT(FACT-30,"mmmm")," de ",YEAR(FACT),".")) -> Datos acumulados a 31 de diciembre. Para el año 2020 datos acumulados a abril de 2020.

Sheet Reservas mes
N1: 31
L4: Concepto
L5: Horizonte temporal
L6: Periodo
C8: Ene. | D8: Feb. | E8: Mar. | F8: Abr. | G8: May. | H8: Jun. | I8: Jul. | J8: Ago. | K8: Sep. | L8: Oct. | M8: Nov. | N8: Dic.
B10: Reservas embalses anuales (GWh) | C10: =OFFSET('Datos hidraulicos'!C8,0,($N$1-1)*12) -> 6049.639869 | D10: =OFFSET('Datos hidraulicos'!D8,0,($N$1-1)*12) -> 5977.327798 | E10: =OFFSET('Datos hidraulicos'!E8,0,($N$1-1)*12) -> 6397.613539 | F10: =OFFSET('Datos hidraulicos'!F8,0,($N$1-1)*12) -> 7238.649603 | G10: =OFFSET('Datos hidraulicos'!G8,0,($N$1-1)*12) -> - | H10: =OFFSET('Datos hidraulicos'!H8,0,($N$1-1)*12) -> - | I10: =OFFSET('Datos hidraulicos'!I8,0,($N$1-1)*12) -> - | J10: =OFFSET('Datos hidraulicos'!J8,0,($N$1-1)*12) -> - | K10: =OFFSET('Datos hidraulicos'!K8,0,($N$1-1)*12) -> - | L10: =OFFSET('Datos hidraulicos'!L8,0,($N$1-1)*12) -> - | M10: =OFFSET('Datos hidraulicos'!M8,0,($N$1-1)*12) -> - | N10: =OFFSET('Datos hidraulicos'!N8,0,($N$1-1)*12) -> -
B11: Reservas embalses hiperanuales (GWh) | C11: =OFFSET('Datos hidraulicos'!C9,0,($N$1-1)*12) -> 4154.203972 | D11: =OFFSET('Datos hidraulicos'!D9,0,($N$1-1)*12) -> 4316.393822 | E11: =OFFSET('Datos hidraulicos'!E9,0,($N$1-1)*12) -> 4524.849367 | F11: =OFFSET('Datos hidraulicos'!F9,0,($N$1-1)*12) -> 5244.315756 | G11: =OFFSET('Datos hidraulicos'!G9,0,($N$1-1)*12) -> - | H11: =OFFSET('Datos hidraulicos'!H9,0,($N$1-1)*12) -> - | I11: =OFFSET('Datos hidraulicos'!I9,0,($N$1-1)*12) -> - | J11: =OFFSET('Datos hidraulicos'!J9,0,($N$1-1)*12) -> - | K11: =OFFSET('Datos hidraulicos'!K9,0,($N$1-1)*12) -> - | L11: =OFFSET('Datos hidraulicos'!L9,0,($N$1-1)*12) -> - | M11: =OFFSET('Datos hidraulicos'!M9,0,($N$1-1)*12) -> - | N11: =OFFSET('Datos hidraulicos'!N9,0,($N$1-1)*12) -> -
B12: Total reservas (GWh) | C12: =OFFSET('Datos hidraulicos'!C10,0,($N$1-1)*12) -> 10203.84384 | D12: =OFFSET('Datos hidraulicos'!D10,0,($N$1-1)*12) -> 10293.72162 | E12: =OFFSET('Datos hidraulicos'!E10,0,($N$1-1)*12) -> 10922.46291 | F12: =OFFSET('Datos hidraulicos'!F10,0,($N$1-1)*12) -> 12482.96536 | G12: =OFFSET('Datos hidraulicos'!G10,0,($N$1-1)*12) -> - | H12: =OFFSET('Datos hidraulicos'!H10,0,($N$1-1)*12) -> - | I12: =OFFSET('Datos hidraulicos'!I10,0,($N$1-1)*12) -> - | J12: =OFFSET('Datos hidraulicos'!J10,0,($N$1-1)*12) -> - | K12: =OFFSET('Datos hidraulicos'!K10,0,($N$1-1)*12) -> - | L12: =OFFSET('Datos hidraulicos'!L10,0,($N$1-1)*12) -> - | M12: =OFFSET('Datos hidraulicos'!M10,0,($N$1-1)*12) -> - | N12: =OFFSET('Datos hidraulicos'!N10,0,($N$1-1)*12) -> -
B14: Llenado embalses anuales (%) | C14: =OFFSET('Datos hidraulicos'!C13,0,($N$1-1)*12) -> 67.466505 | D14: =OFFSET('Datos hidraulicos'!D13,0,($N$1-1)*12) -> 66.66006978 | E14: =OFFSET('Datos hidraulicos'!E13,0,($N$1-1)*12) -> 71.35 | F14: =OFFSET('Datos hidraulicos'!F13,0,($N$1-1)*12) -> 80.72652261 | G14: =OFFSET('Datos hidraulicos'!G13,0,($N$1-1)*12) -> - | H14: =OFFSET('Datos hidraulicos'!H13,0,($N$1-1)*12) -> - | I14: =OFFSET('Datos hidraulicos'!I13,0,($N$1-1)*12) -> - | J14: =OFFSET('Datos hidraulicos'!J13,0,($N$1-1)*12) -> - | K14: =OFFSET('Datos hidraulicos'!K13,0,($N$1-1)*12) -> - | L14: =OFFSET('Datos hidraulicos'!L13,0,($N$1-1)*12) -> - | M14: =OFFSET('Datos hidraulicos'!M13,0,($N$1-1)*12) -> - | N14: =OFFSET('Datos hidraulicos'!N13,0,($N$1-1)*12) -> -
B15: Llenado embalses hiperanuales (%) | C15: =OFFSET('Datos hidraulicos'!C14,0,($N$1-1)*12) -> 43.40320383 | D15: =OFFSET('Datos hidraulicos'!D14,0,($N$1-1)*12) -> 45.09776653 | E15: =OFFSET('Datos hidraulicos'!E14,0,($N$1-1)*12) -> 47.27571411 | F15: =OFFSET('Datos hidraulicos'!F14,0,($N$1-1)*12) -> 54.79271293 | G15: =OFFSET('Datos hidraulicos'!G14,0,($N$1-1)*12) -> - | H15: =OFFSET('Datos hidraulicos'!H14,0,($N$1-1)*12) -> - | I15: =OFFSET('Datos hidraulicos'!I14,0,($N$1-1)*12) -> - | J15: =OFFSET('Datos hidraulicos'!J14,0,($N$1-1)*12) -> - | K15: =OFFSET('Datos hidraulicos'!K14,0,($N$1-1)*12) -> - | L15: =OFFSET('Datos hidraulicos'!L14,0,($N$1-1)*12) -> - | M15: =OFFSET('Datos hidraulicos'!M14,0,($N$1-1)*12) -> - | N15: =OFFSET('Datos hidraulicos'!N14,0,($N$1-1)*12) -> -
B16: Llenado total reservas (%) | C16: =OFFSET('Datos hidraulicos'!C15,0,($N$1-1)*12) -> 55.04264085 | D16: =OFFSET('Datos hidraulicos'!D15,0,($N$1-1)*12) -> 55.52746896 | E16: =OFFSET('Datos hidraulicos'!E15,0,($N$1-1)*12) -> 58.91909091 | F16: =OFFSET('Datos hidraulicos'!F15,0,($N$1-1)*12) -> 67.33691634 | G16: =OFFSET('Datos hidraulicos'!G15,0,($N$1-1)*12) -> - | H16: =OFFSET('Datos hidraulicos'!H15,0,($N$1-1)*12) -> - | I16: =OFFSET('Datos hidraulicos'!I15,0,($N$1-1)*12) -> - | J16: =OFFSET('Datos hidraulicos'!J15,0,($N$1-1)*12) -> - | K16: =OFFSET('Datos hidraulicos'!K15,0,($N$1-1)*12) -> - | L16: =OFFSET('Datos hidraulicos'!L15,0,($N$1-1)*12) -> - | M16: =OFFSET('Datos hidraulicos'!M15,0,($N$1-1)*12) -> - | N16: =OFFSET('Datos hidraulicos'!N15,0,($N$1-1)*12) -> -
B18: Datos a último día de cada mes.

Sheet Reservas año
L1: 4
J4: Concepto
J5: Horizonte temporal
J6: Periodo
C8: =OFFSET('Datos hidraulicos'!C22,0,($L$1-1)*10) -> 2020 | D8: =OFFSET('Datos hidraulicos'!D22,0,($L$1-1)*10) -> 2021 | E8: =OFFSET('Datos hidraulicos'!E22,0,($L$1-1)*10) -> 2022 | F8: =OFFSET('Datos hidraulicos'!F22,0,($L$1-1)*10) -> 2023 | G8: =OFFSET('Datos hidraulicos'!G22,0,($L$1-1)*10) -> 2024 | H8: =OFFSET('Datos hidraulicos'!H22,0,($L$1-1)*10) -> 2025 | I8: =OFFSET('Datos hidraulicos'!I22,0,($L$1-1)*10) -> 2026 | J8: =OFFSET('Datos hidraulicos'!J22,0,($L$1-1)*10) -> 2027 | K8: =OFFSET('Datos hidraulicos'!K22,0,($L$1-1)*10) -> 2028 | L8: =OFFSET('Datos hidraulicos'!L22,0,($L$1-1)*10) -> 2029
B10: Reservas embalses anuales (GWh) | C10: =OFFSET('Datos hidraulicos'!C23,0,($L$1-1)*10) -> 7238.649603 | D10: =OFFSET('Datos hidraulicos'!D23,0,($L$1-1)*10) -> - | E10: =OFFSET('Datos hidraulicos'!E23,0,($L$1-1)*10) -> - | F10: =OFFSET('Datos hidraulicos'!F23,0,($L$1-1)*10) -> - | G10: =OFFSET('Datos hidraulicos'!G23,0,($L$1-1)*10) -> - | H10: =OFFSET('Datos hidraulicos'!H23,0,($L$1-1)*10) -> - | I10: =OFFSET('Datos hidraulicos'!I23,0,($L$1-1)*10) -> - | J10: =OFFSET('Datos hidraulicos'!J23,0,($L$1-1)*10) -> - | K10: =OFFSET('Datos hidraulicos'!K23,0,($L$1-1)*10) -> - | L10: =OFFSET('Datos hidraulicos'!L23,0,($L$1-1)*10) -> -
B11: Reservas embalses hiperanuales (GWh) | C11: =OFFSET('Datos hidraulicos'!C24,0,($L$1-1)*10) -> 5244.315756 | D11: =OFFSET('Datos hidraulicos'!D24,0,($L$1-1)*10) -> - | E11: =OFFSET('Datos hidraulicos'!E24,0,($L$1-1)*10) -> - | F11: =OFFSET('Datos hidraulicos'!F24,0,($L$1-1)*10) -> - | G11: =OFFSET('Datos hidraulicos'!G24,0,($L$1-1)*10) -> - | H11: =OFFSET('Datos hidraulicos'!H24,0,($L$1-1)*10) -> - | I11: =OFFSET('Datos hidraulicos'!I24,0,($L$1-1)*10) -> - | J11: =OFFSET('Datos hidraulicos'!J24,0,($L$1-1)*10) -> - | K11: =OFFSET('Datos hidraulicos'!K24,0,($L$1-1)*10) -> - | L11: =OFFSET('Datos hidraulicos'!L24,0,($L$1-1)*10) -> -
B12: Total reservas (GWh) | C12: =OFFSET('Datos hidraulicos'!C25,0,($L$1-1)*10) -> 12482.96536 | D12: =OFFSET('Datos hidraulicos'!D25,0,($L$1-1)*10) -> - | E12: =OFFSET('Datos hidraulicos'!E25,0,($L$1-1)*10) -> - | F12: =OFFSET('Datos hidraulicos'!F25,0,($L$1-1)*10) -> - | G12: =OFFSET('Datos hidraulicos'!G25,0,($L$1-1)*10) -> - | H12: =OFFSET('Datos hidraulicos'!H25,0,($L$1-1)*10) -> - | I12: =OFFSET('Datos hidraulicos'!I25,0,($L$1-1)*10) -> - | J12: =OFFSET('Datos hidraulicos'!J25,0,($L$1-1)*10) -> - | K12: =OFFSET('Datos hidraulicos'!K25,0,($L$1-1)*10) -> - | L12: =OFFSET('Datos hidraulicos'!L25,0,($L$1-1)*10) -> -
B14: Llenado embalses anuales (%) | C14: =OFFSET('Datos hidraulicos'!C28,0,($L$1-1)*10) -> 80.72652261 | D14: =OFFSET('Datos hidraulicos'!D28,0,($L$1-1)*10) -> - | E14: =OFFSET('Datos hidraulicos'!E28,0,($L$1-1)*10) -> - | F14: =OFFSET('Datos hidraulicos'!F28,0,($L$1-1)*10) -> - | G14: =OFFSET('Datos hidraulicos'!G28,0,($L$1-1)*10) -> - | H14: =OFFSET('Datos hidraulicos'!H28,0,($L$1-1)*10) -> - | I14: =OFFSET('Datos hidraulicos'!I28,0,($L$1-1)*10) -> - | J14: =OFFSET('Datos hidraulicos'!J28,0,($L$1-1)*10) -> - | K14: =OFFSET('Datos hidraulicos'!K28,0,($L$1-1)*10) -> - | L14: =OFFSET('Datos hidraulicos'!L28,0,($L$1-1)*10) -> -
B15: Llenado embalses hiperanuales (%) | C15: =OFFSET('Datos hidraulicos'!C29,0,($L$1-1)*10) -> 54.79271293 | D15: =OFFSET('Datos hidraulicos'!D29,0,($L$1-1)*10) -> - | E15: =OFFSET('Datos hidraulicos'!E29,0,($L$1-1)*10) -> - | F15: =OFFSET('Datos hidraulicos'!F29,0,($L$1-1)*10) -> - | G15: =OFFSET('Datos hidraulicos'!G29,0,($L$1-1)*10) -> - | H15: =OFFSET('Datos hidraulicos'!H29,0,($L$1-1)*10) -> - | I15: =OFFSET('Datos hidraulicos'!I29,0,($L$1-1)*10) -> - | J15: =OFFSET('Datos hidraulicos'!J29,0,($L$1-1)*10) -> - | K15: =OFFSET('Datos hidraulicos'!K29,0,($L$1-1)*10) -> - | L15: =OFFSET('Datos hidraulicos'!L29,0,($L$1-1)*10) -> -
B16: Llenado total reservas (%) | C16: =OFFSET('Datos hidraulicos'!C30,0,($L$1-1)*10) -> 67.33691634 | D16: =OFFSET('Datos hidraulicos'!D30,0,($L$1-1)*10) -> - | E16: =OFFSET('Datos hidraulicos'!E30,0,($L$1-1)*10) -> - | F16: =OFFSET('Datos hidraulicos'!F30,0,($L$1-1)*10) -> - | G16: =OFFSET('Datos hidraulicos'!G30,0,($L$1-1)*10) -> - | H16: =OFFSET('Datos hidraulicos'!H30,0,($L$1-1)*10) -> - | I16: =OFFSET('Datos hidraulicos'!I30,0,($L$1-1)*10) -> - | J16: =OFFSET('Datos hidraulicos'!J30,0,($L$1-1)*10) -> - | K16: =OFFSET('Datos hidraulicos'!K30,0,($L$1-1)*10) -> - | L16: =OFFSET('Datos hidraulicos'!L30,0,($L$1-1)*10) -> -
B18: =IF(MONTH(FACT)=1,"Datos a 31 de diciembre.",CONCATENATE("Datos a 31 de diciembre. Para el año ",YEAR(FACT), " datos a ",TEXT(FACT-30,"mmmm")," de ",YEAR(FACT),".")) -> Datos a 31 de diciembre. Para el año 2020 datos a abril de 2020.

Sheet Datos hidraulicos (hidden)
B2: Producible hidráulico mensual peninsular (GWh) | C2: 1990-01-01 | D2: 1990-02-01 | E2: 1990-03-01 | F2: 1990-04-01 | G2: 1990-05-01 | H2: 1990-06-01 | I2: 1990-07-01 | J2: 1990-08-01 | K2: 1990-09-01 | L2: 1990-10-01 | M2: 1990-11-01 | N2: 1990-12-01 | O2: 1990 | P2: 1991-01-01 | Q2: 1991-02-01 | R2: 1991-03-01 | S2: 1991-04-01 | T2: 1991-05-01 | U2: 1991-06-01 | V2: 1991-07-01 | W2: 1991-08-01 | X2: 1991-09-01 | Y2: 1991-10-01 | Z2: 1991-11-01 | AA2: 1991-12-01 | AB2: 1991 | AC2: 1992-01-01 | AD2: 1992-02-01 | AE2: 1992-03-01 | AF2: 1992-04-01 | AG2: 1992-05-01 | AH2: 1992-06-01 | AI2: 1992-07-01 | AJ2: 1992-08-01 | AK2: 1992-09-01 | AL2: 1992-10-01 | AM2: 1992-11-01 | AN2: 1992-12-01 | AO2: 1992 | AP2: 1993-01-01 | AQ2: 1993-02-01 | AR2: 1993-03-01 | AS2: 1993-04-01 | AT2: 1993-05-01 | AU2: 1993-06-01 | AV2: 1993-07-01 | AW2: 1993-08-01 | AX2: 1993-09-01 | AY2: 1993-10-01 | AZ2: 1993-11-01 | BA2: 1993-12-01 | BB2: 1993 | BC2: 1994-01-01 | BD2: 1994-02-01 | BE2: 1994-03-01 | BF2: 1994-04-01 | BG2: 1994-05-01 | BH2: 1994-06-01 | BI2: 1994-07-01 | BJ2: 1994-08-01 | BK2: 1994-09-01 | BL2: 1994-10-01 | BM2: 1994-11-01 | BN2: 1994-12-01 | BO2: 1994 | BP2: 1995-01-01 | BQ2: 1995-02-01 | BR2: 1995-03-01 | BS2: 1995-04-01 | BT2: 1995-05-01 | BU2: 1995-06-01 | BV2: 1995-07-01 | BW2: 1995-08-01 | BX2: 1995-09-01 | BY2: 1995-10-01 | BZ2: 1995-11-01 | CA2: 1995-12-01 | CB2: 1995 | CC2: 1996-01-01 | CD2: 1996-02-01 | CE2: 1996-03-01 | CF2: 1996-04-01 | CG2: 1996-05-01 | CH2: 1996-06-01 | CI2: 1996-07-01 | CJ2: 1996-08-01 | CK2: 1996-09-01 | CL2: 1996-10-01 | CM2: 1996-11-01 | CN2: 1996-12-01 | CO2: 1996 | CP2: 1997-01-01 | CQ2: 1997-02-01 | CR2: 1997-03-01 | CS2: 1997-04-01 | CT2: 1997-05-01 | CU2: 1997-06-01 | CV2: 1997-07-01 | CW2: 1997-08-01 | CX2: 1997-09-01 | CY2: 1997-10-01 | CZ2: 1997-11-01 | DA2: 1997-12-01 | DB2: 1997 | DC2: 1998-01-01 | DD2: 1998-02-01 | DE2: 1998-03-01 | DF2: 1998-04-01 | DG2: 1998-05-01 | DH2: 1998-06-01 | DI2: 1998-07-01 | DJ2: 1998-08-01 | DK2: 1998-09-01 | DL2: 1998-10-01 | DM2: 1998-11-01 | DN2: 1998-12-01 | DO2: 1998 | DP2: 1999-01-01 | DQ2: 1999-02-01 | DR2: 1999-03-01 | DS2: 1999-04-01 | DT2: 1999-05-01 | DU2: 1999-06-01 | DV2: 1999-07-01 | DW2: 1999-08-01 | DX2: 1999-09-01 | DY2: 1999-10-01 | DZ2: 1999-11-01 | EA2: 1999-12-01 | EB2: 1999 | EC2: 2000-01-01 | ED2: 2000-02-01 | EE2: 2000-03-01 | EF2: 2000-04-01 | EG2: 2000-05-01 | EH2: 2000-06-01 | EI2: 2000-07-01 | EJ2: 2000-08-01 | EK2: 2000-09-01 | EL2: 2000-10-01 | EM2: 2000-11-01 | EN2: 2000-12-01 | EO2: 2000 | EP2: 2001-01-01 | EQ2: 2001-02-01 | ER2: 2001-03-01 | ES2: 2001-04-01 | ET2: 2001-05-01 | EU2: 2001-06-01 | EV2: 2001-07-01 | EW2: 2001-08-01 | EX2: 2001-09-01 | EY2: 2001-10-01 | EZ2: 2001-11-01 | FA2: 2001-12-01 | FB2: 2001 | FC2: 2002-01-01 | FD2: 2002-02-01 | FE2: 2002-03-01 | FF2: 2002-04-01 | FG2: 2002-05-01 | FH2: 2002-06-01 | FI2: 2002-07-01 | FJ2: 2002-08-01 | FK2: 2002-09-01 | FL2: 2002-10-01 | FM2: 2002-11-01 | FN2: 2002-12-01 | FO2: 2002 | FP2: 2003-01-01 | FQ2: 2003-02-01 | FR2: 2003-03-01 | FS2: 2003-04-01 | FT2: 2003-05-01 | FU2: 2003-06-01 | FV2: 2003-07-01 | FW2: 2003-08-01 | FX2: 2003-09-01 | FY2: 2003-10-01 | FZ2: 2003-11-01 | GA2: 2003-12-01 | GB2: 2003 | GC2: 2004-01-01 | GD2: 2004-02-01 | GE2: 2004-03-01 | GF2: 2004-04-01 | GG2: 2004-05-01 | GH2: 2004-06-01 | GI2: 2004-07-01 | GJ2: 2004-08-01 | GK2: 2004-09-01 | GL2: 2004-10-01 | GM2: 2004-11-01 | GN2: 2004-12-01 | GO2: 2004 | GP2: 2005-01-01 | GQ2: 2005-02-01 | GR2: 2005-03-01 | GS2: 2005-04-01 | GT2: 2005-05-01 | GU2: 2005-06-01 | GV2: 2005-07-01 | GW2: 2005-08-01 | GX2: 2005-09-01 | GY2: 2005-10-01 | GZ2: 2005-11-01 | HA2: 2005-12-01 | HB2: 2005 | HC2: 2006-01-01 | HD2: 2006-02-01 | HE2: 2006-03-01 | HF2: 2006-04-01 | HG2: 2006-05-01 | HH2: 2006-06-01 | HI2: 2006-07-01 | HJ2: 2006-08-01 | HK2: 2006-09-01 | HL2: 2006-10-01 | HM2: 2006-11-01 | HN2: 2006-12-01 | HO2: 2006 | HP2: 2007-01-01 | HQ2: 2007-02-01 | HR2: 2007-03-01 | HS2: 2007-04-01 | HT2: 2007-05-01 | HU2: 2007-06-01 | HV2: 2007-07-01 | HW2: 2007-08-01 | HX2: 2007-09-01 | HY2: 2007-10-01 | HZ2: 2007-11-01 | IA2: 2007-12-01 | IB2: 2007 | IC2: 2008-01-01 | ID2: 2008-02-01 | IE2: 2008-03-01 | IF2: 2008-04-01 | IG2: 2008-05-01 | IH2: 2008-06-01 | II2: 2008-07-01 | IJ2: 2008-08-01 | IK2: 2008-09-01 | IL2: 2008-10-01 | IM2: 2008-11-01 | IN2: 2008-12-01 | IO2: 2008 | IP2: 2009-01-01 | IQ2: 2009-02-01 | IR2: 2009-03-01 | IS2: 2009-04-01 | IT2: 2009-05-01 | IU2: 2009-06-01 | IV2: 2009-07-01 | IW2: 2009-08-01 | IX2: 2009-09-01 | IY2: 2009-10-01 | IZ2: 2009-11-01 | JA2: 2009-12-01 | JB2: 2009 | JC2: 2010-01-31 | JD2: 2010-02-28 | JE2: 2010-03-31 | JF2: 2010-04-30 | JG2: 2010-05-31 | JH2: 2010-06-30 | JI2: 2010-07-31 | JJ2: 2010-08-31 | JK2: 2010-09-30 | JL2: 2010-10-31 | JM2: 2010-11-30 | JN2: 2010-12-31 | JO2: 2010 | JP2: 2011-01-31 | JQ2: 2011-02-28 | JR2: 2011-03-31 | JS2: 2011-04-30 | JT2: 2011-05-31 | JU2: 2011-06-30 | JV2: 2011-07-31 | JW2: 2011-08-31 | JX2: 2011-09-30 | JY2: 2011-10-31 | JZ2: 2011-11-30 | KA2: 2011-12-31 | KB2: 2011 | KC2: 2012-01-31 | KD2: 2012-02-29 | KE2: 2012-03-31 | KF2: 2012-04-30 | KG2: 2012-05-31 | KH2: 2012-06-30 | KI2: 2012-07-31 | KJ2: 2012-08-31 | KK2: 2012-09-30 | KL2: 2012-10-31 | KM2: 2012-11-30 | KN2: 2012-12-31 | KO2: 2012 | KP2: 2013-01-31 | KQ2: 2013-02-28 | KR2: 2013-03-31 | KS2: 2013-04-30 | KT2: 2013-05-31 | KU2: 2013-06-30 | KV2: 2013-07-31 | KW2: 2013-08-31 | KX2: 2013-09-30 | KY2: 2013-10-31 | KZ2: 2013-11-30 | LA2: 2013-12-31 | LB2: 2013 | LC2: 2014-01-31 | LD2: 2014-02-28 | LE2: 2014-03-31 | LF2: 2014-04-30 | LG2: 2014-05-31 | LH2: 2014-06-30 | LI2: 2014-07-31 | LJ2: 2014-08-31 | LK2: 2014-09-30 | LL2: 2014-10-31 | LM2: 2014-11-30 | LN2: 2014-12-31 | LO2: 2014 | LP2: 2015-01-31 | LQ2: 2015-02-28 | LR2: 2015-03-31 | LS2: 2015-04-30 | LT2: 2015-05-31 | LU2: 2015-06-30 | LV2: 2015-07-31 | LW2: 2015-08-31 | LX2: 2015-09-30 | LY2: 2015-10-31 | LZ2: 2015-11-30 | MA2: 2015-12-31 | MB2: 2015 | MC2: 2016-01-31 | MD2: 2016-02-29 | ME2: 2016-03-31 | MF2: 2016-04-30 | MG2: 2016-05-31 | MH2: 2016-06-30 | MI2: 2016-07-31 | MJ2: 2016-08-31 | MK2: 2016-09-30 | ML2: 2016-10-31 | MM2: 2016-11-30 | MN2: 2016-12-31 | MO2: 2016 | MP2: 2017-01-31 | MQ2: 2017-02-28 | MR2: 2017-03-31 | MS2: 2017-04-30 | MT2: 2017-05-31 | MU2: 2017-06-30 | MV2: 2017-07-31 | MW2: 2017-08-31 | MX2: 2017-09-30 | MY2: 2017-10-31 | MZ2: 2017-11-30 | NA2: 2017-12-31 | NB2: 2017 | NC2: 2018-01-31 | ND2: 2018-02-28 | NE2: 2018-03-31 | NF2: 2018-04-30 | NG2: 2018-05-31 | NH2: 2018-06-30 | NI2: 2018-07-31 | NJ2: 2018-08-31 | NK2: 2018-09-30 | NL2: 2018-10-31 | NM2: 2018-11-30 | NN2: 2018-12-31 | NO2: 2018 | NP2: 2019-01-31 | NQ2: 2019-02-28 | NR2: 2019-03-31 | NS2: 2019-04-30 | NT2: 2019-05-31 | NU2: 2019-06-30 | NV2: 2019-07-31 | NW2: 2019-08-31 | NX2: 2019-09-30 | NY2: 2019-10-31 | NZ2: 2019-11-30 | OA2: 2019-12-31 | OB2: 2019 | OC2: 2020-01-31 | OD2: 2020-02-28 | OE2: 2020-03-31 | OF2: 2020-04-30 | OG2: 2020-05-31 | OH2: 2020-06-30 | OI2: 2020-07-31 | OJ2: 2020-08-31 | OK2: 2020-09-30 | OL2: 2020-10-31 | OM2: 2020-11-30 | ON2: 2020-12-31 | OO2: 2020
B3: Producible hidraulico (GWh) | C3: - | D3: - | E3: - | F3: - | G3: - | H3: - | I3: - | J3: - | K3: - | L3: - | M3: - | N3: - | O3: - | P3: 3271.3104 | Q3: 2052.3489 | R3: 6101.5388 | S3: 3148.3003 | T3: 2248.0217 | U3: 1517.1972 | V3: 687.3096 | W3: 423.543 | X3: 468.2439 | Y3: 1031.5637 | Z3: 2067.3471 | AA3: 1389.1853 | AB3: 24405.9099 | AC3: 1114.3836 | AD3: 750.3205 | AE3: 793.593 | AF3: 2829.5459 | AG3: 1558.6225 | AH3: 1819.6422 | AI3: 942.5299 | AJ3: 534.7264 | AK3: 802.7842 | AL3: 1940.9221 | AM3: 2162.6987 | AN3: 3205.0855 | AO3: 18454.8545 | AP3: 1453.7293 | AQ3: 892.8647 | AR3: 1752.6552 | AS3: 1499.5642 | AT3: 2943.8387 | AU3: 2169.8636 | AV3: 715.2908 | AW3: 364.7369 | AX3: 838.5702 | AY3: 4032.6911 | AZ3: 2665.3337 | BA3: 2490.3813 | BB3: 21819.5197 | BC3: 4933.4198 | BD3: 2916.1679 | BE3: 2717.3327 | BF3: 1595.7347 | BG3: 3626.3605 | BH3: 1648.447 | BI3: 600.4626 | BJ3: 314.4648 | BK3: 555.0912 | BL3: 1286.8289 | BM3: 2219.7326 | BN3: 1465.859 | BO3: 23879.9017 | BP3: 3541.8669 | BQ3: 3193.4034 | BR3: 2772.4562 | BS3: 1046.2757 | BT3: 1429.4459 | BU3: 1017.9943 | BV3: 618.7305 | BW3: 300.4693 | BX3: 577.3547 | BY3: 575.1827 | BZ3: 1712.859 | CA3: 4656.2302 | CB3: 21442.2688 | CC3: 9094.5355 | CD3: 5099.1702 | CE3: 3461.5581 | CF3: 3740.6469 | CG3: 3942.7284 | CH3: 2034.5723 | CI3: 933.4812 | CJ3: 674.4952 | CK3: 691.0389 | CL3: 955.9977 | CM3: 2252.2897 | CN3: 6205.0063 | CO3: 39085.5204 | CP3: 7042.7408 | CQ3: 3343.4194 | CR3: 2002.6566 | CS3: 1412.2121 | CT3: 2050.8848 | CU3: 2430.9981 | CV3: 1218.9862 | CW3: 800.3917 | CX3: 740.4133 | CY3: 1015.0318 | CZ3: 5809.8203 | DA3: 7495.6986 | DB3: 35363.2537 | DC3: 4936.3195 | DD3: 3495.8964 | DE3: 2044.0003 | DF3: 4239.0683 | DG3: 4013.6643 | DH3: 2634.2334 | DI3: 701.8729 | DJ3: 543.2345 | DK3: 911.9898 | DL3: 1390.6009 | DM3: 704.1908 | DN3: 1065.8421 | DO3: 26680.9132 | DP3: 1693.7596 | DQ3: 1305.3253 | DR3: 2113.0543 | DS3: 1802.7277 | DT3: 2842.6938 | DU3: 1235.2328 | DV3: 434.1874 | DW3: 404.8054 | DX3: 1009.6883 | DY3: 2716.6222 | DZ3: 2222.3808 | EA3: 2668.8224 | EB3: 20449.3 | EC3: 1760.4736 | ED3: 1178.3582 | EE3: 887.6886 | EF3: 4457.3506 | EG3: 4383.1448 | EH3: 1525.9665 | EI3: 467.2636 | EJ3: 258.4883 | EK3: 400.5856 | EL3: 778.2827 | EM3: 3573.1581 | EN3: 6932.2372 | EO3: 26602.9978 | EP3: 7900.5529 | EQ3: 4936.7667 | ER3: 7585.0551 | ES3: 3378.3847 | ET3: 2971.9243 | EU3: 1361.9309 | EV3: 748.0703 | EW3: 336.5036 | EX3: 393.0917 | EY3: 1197.4427 | EZ3: 785.8188 | FA3: 592.2075 | FB3: 32187.7492 | FC3: 1231.2996 | FD3: 1411.4476 | FE3: 2140.5437 | FF3: 1700.6139 | FG3: 1738.2671 | FH3: 1228.4644 | FI3: 496.9869 | FJ3: 319.9496 | FK3: 629.2032 | FL3: 1381.5771 | FM3: 3219.8176 | FN3: 6064.5099 | FO3: 21562.6806 | FP3: 6336.0815 | FQ3: 4195.8479 | FR3: 4360.64 | FS3: 3925.465 | FT3: 2911.3943 | FU3: 1314.7265 | FV3: 521.2422 | FW3: 268.4147 | FX3: 703.7095 | FY3: 1717.1363 | FZ3: 3864.3422 | GA3: 4642.7531 | GB3: 34761.7532 | GC3: 3731.8851 | GD3: 2486.474 | GE3: 2702.4129 | GF3: 2806.1775 | GG3: 2976.8784 | GH3: 1717.8491 | GI3: 732.0226 | GJ3: 443.8516 | GK3: 633.6908 | GL3: 1346.6882 | GM3: 1768.2155 | GN3: 1672.2344 | GO3: 23018.3801 | GP3: 1546.698 | GQ3: 1056.9744 | GR3: 1508.4081 | GS3: 2176.634 | GT3: 1828.3504 | GU3: 838.6191 | GV3: 183.9709 | GW3: 93.085 | GX3: 231.8764 | GY3: 901.2778 | GZ3: 1487.0603 | HA3: 1859.4277 | HB3: 13712.3821 | HC3: 1513.6503 | HD3: 1259.9497 | HE3: 4146.3933 | HF3: 2571.3433 | HG3: 1357.3959 | HH3: 703.4433 | HI3: 430.848051 | HJ3: 327.557575 | HK3: 517.28509 | HL3: 2637.35673 | HM3: 4919.645893 | HN3: 4044.062655 | HO3: 24428.93179 | HP3: 1682.524405 | HQ3: 3734.038477 | HR3: 2996.781138 | HS3: 2854.456843 | HT3: 2883.684038 | HU3: 1803.183519 | HV3: 436.237584 | HW3: 194.780707 | HX3: 344.739146 | HY3: 723.523049 | HZ3: 558.932396 | IA3: 548.238917 | IB3: 18761.12022 | IC3: 1383.039256 | ID3: 918.626513 | IE3: 1217.521465 | IF3: 4075.549193 | IG3: 3643.656595 | IH3: 2684.052684 | II3: 726.619483 | IJ3: 184.550818 | IK3: 357.596506 | IL3: 543.846901 | IM3: 1413.596555 | IN3: 2425.614618 | IO3: 19574.27059 | IP3: 2994.498425 | IQ3: 3854.915004 | IR3: 2643.137261 | IS3: 1906.292124 | IT3: 2128.364771 | IU3: 1200.236673 | IV3: 410.3918 | IW3: 202.223797 | IX3: 266.894663 | IY3: 638.023853 | IZ3: 1897.421443 | JA3: 4814.795353 | JB3: 22957.19517 | JC3: 6610.010022 | JD3: 5217.442507 | JE3: 6081.165396 | JF3: 4089.382427 | JG3: 3311.85165 | JH3: 2978.688588 | JI3: 1150.002146 | JJ3: 345.887238 | JK3: 442.143453 | JL3: 978.262763 | JM3: 2470.096657 | JN3: 4495.302067 | JO3: 38170.23491 | JP3: 5690.45841 | JQ3: 3519.883385 | JR3: 4251.849426 | JS3: 3663.466673 | JT3: 2662.538096 | JU3: 1518.457433 | JV3: 681.7258657 | JW3: 469.815385 | JX3: 494.2798446 | JY3: 631.157447 | JZ3: 2459.23959 | KA3: 1686.961799 | KB3: 27729.83335 | KC3: 1194.960333 | KD3: 1140.1858 | KE3: 960.2370724 | KF3: 2348.568943 | KG3: 3408.352625 | KH3: 1318.663174 | KI3: 536.4172111 | KJ3: 264.8566052 | KK3: 389.6734588 | KL3: 1171.532122 | KM3: 2083.326045 | KN3: 3194.425872 | KO3: 18011.19926 | KP3: 4965.851389 | KQ3: 4236.078937 | KR3: 8077.77687 | KS3: 6636.44016 | KT3: 3929.670966 | KU3: 2840.443844 | KV3: 1597.129678 | KW3: 832.7891889 | KX3: 742.6758724 | KY3: 1810.431767 | KZ3: 2548.740033 | LA3: 2756.212551 | LB3: 40974.24125 | LC3: 6687.319349 | LD3: 6792.649538 | LE3: 5082.761074 | LF3: 5373.355032 | LG3: 2580.591428 | LH3: 1940.265002 | LI3: 1243.072097 | LJ3: 765.3604691 | LK3: 962.9927997 | LL3: 1891.840041 | LM3: 3393.642083 | LN3: 3557.223728 | LO3: 40271.07264 | LP3: 2629.098111 | LQ3: 4293.102222 | LR3: 4140.698568 | LS3: 2941.184643 | LT3: 2629.447014 | LU3: 1517.642349 | LV3: 584.7297367 | LW3: 655.4862231 | LX3: 886.8259489 | LY3: 1515.296985 | LZ3: 2009.066657 | MA3: 1338.316805 | MB3: 25140.89526 | MC3: 6024.066765 | MD3: 4889.451339 | ME3: 4602.668503 | MF3: 6104.820448 | MG3: 5483.09499 | MH3: 2111.553256 | MI3: 914.5288982 | MJ3: 366.8475349 | MK3: 469.9511344 | ML3: 729.4068146 | MM3: 1592.11384 | MN3: 1378.379884 | MO3: 34666.88341 | MP3: 1123.655596 | MQ3: 3802.115914 | MR3: 2666.607794 | MS3: 1545.585512 | MT3: 1989.534408 | MU3: 1074.261171 | MV3: 557.147561 | MW3: 252.8176667 | MX3: 287.4453044 | MY3: 410.8412074 | MZ3: 528.1124985 | NA3: 1733.883292 | NB3: 15972.00793 | NC3: 2709.41262 | ND3: 2607.049291 | NE3: 8485.185201 | NF3: 6916.22939 | NG3: 3721.055711 | NH3: 3498.363742 | NI3: 1397.294328 | NJ3: 1173.857654 | NK3: 802.4235357 | NL3: 900.114996 | NM3: 2542.116566 | NN3: 2649.669039 | NO3: 37402.77207 | NP3: 2025.863412 | NQ3: 3278.434652 | NR3: 2258.06143 | NS3: 2474.688896 | NT3: 2276.000029 | NU3: 1071.837287 | NV3: 413.22055 | NW3: 356.3766297 | NX3: 428.4571009 | NY3: 1013.73439 | NZ3: 4112.134278 | OA3: 6279.837704 | OB3: 25988.64636 | OC3: 4477.65934 | OD3: 2923.6457 | OE3: 3739.249772 | OF3: 4421.344742 | OG3: - | OH3: - | OI3: - | OJ3: - | OK3: - | OL3: - | OM3: - | ON3: - | OO3: 15561.89955
B4: Índice de producible | C4: - | D4: - | E4: - | F4: - | G4: - | H4: - | I4: - | J4: - | K4: - | L4: - | M4: - | N4: - | O4: - | P4: 0.8932831233 | Q4: 0.7314269019 | R4: 1.977950957 | S4: 1.101213995 | T4: 0.8550269638 | U4: 0.9481440569 | V4: 1.102116581 | W4: 1.208816509 | X4: 0.8624886826 | Y4: 0.7757051778 | Z4: 0.8998001607 | AA4: 0.4497794151 | AB4: 0.9811798599 | AC4: 0.3043000942 | AD4: 0.2581823696 | AE4: 0.2572610099 | AF4: 0.9897199271 | AG4: 0.592816459 | AH4: 1.137151412 | AI4: 1.511368139 | AJ4: 1.526140439 | AK4: 1.478700069 | AL4: 1.45951561 | AM4: 0.9413013605 | AN4: 1.037717201 | AO4: 0.7389551427 | AP4: 0.3969638129 | AQ4: 0.3182038207 | AR4: 0.5681625806 | AS4: 0.5245182878 | AT4: 1.119678456 | AU4: 1.356015735 | AV4: 1.146985072 | AW4: 1.040980458 | AX4: 1.544616613 | AY4: 3.032463596 | AZ4: 1.160070165 | BA4: 0.8063159353 | BB4: 0.8772003736 | BC4: 1.347148423 | BD4: 1.039279263 | BE4: 0.880884477 | BF4: 0.5581568516 | BG4: 1.379273166 | BH4: 1.030166168 | BI4: 0.9628554408 | BJ4: 0.8975009423 | BK4: 1.022458334 | BL4: 0.9676570053 | BM4: 0.9661250161 | BN4: 0.4746042185 | BO4: 0.9600329879 | BP4: 0.9671628613 | BQ4: 1.13808191 | BR4: 0.8987539986 | BS4: 0.365966818 | BT4: 0.543684604 | BU4: 0.6361765271 | BV4: 0.9921484341 | BW4: 0.8575569662 | BX4: 1.063466912 | BY4: 0.4325202589 | BZ4: 0.7455113868 | CA4: 1.50755734 | CB4: 0.8620339247 | CC4: 2.483406979 | CD4: 1.754604659 | CE4: 1.12214187 | CF4: 1.308405273 | CG4: 1.499602559 | CH4: 1.271467964 | CI4: 1.496858343 | CJ4: 1.925048774 | CK4: 1.272869183 | CL4: 0.7188817965 | CM4: 0.9802952944 | CN4: 2.009007801 | CO4: 1.565032458 | CP4: 1.923131935 | CQ4: 1.191545401 | CR4: 0.6492061541 | CS4: 0.4939642282 | CT4: 0.7800466533 | CU4: 1.519206864 | CV4: 1.954672106 | CW4: 2.284364752 | CX4: 1.36381508 | CY4: 0.7632736814 | CZ4: 2.528688695 | DA4: 2.426897932 | DB4: 1.421693043 | DC4: 1.347940232 | DD4: 1.245885957 | DE4: 0.6626086438 | DF4: 1.482743351 | DG4: 1.526582773 | DH4: 1.64621497 | DI4: 1.125469164 | DJ4: 1.550423054 | DK4: 1.679852917 | DL4: 1.045690459 | DM4: 0.3064947318 | DN4: 0.3450899144 | DO4: 1.072640798 | DP4: 0.4625078885 | DQ4: 0.4464046915 | DR4: 0.6849940502 | DS4: 0.6305589628 | DT4: 1.081208357 | DU4: 0.7719356708 | DV4: 0.6962293745 | DW4: 1.155338302 | DX4: 1.859810094 | DY4: 2.042818981 | DZ4: 0.9672776289 | EA4: 0.8640901815 | EB4: 0.8221140449 | EC4: 0.4807252029 | ED4: 0.4054684796 | EE4: 0.2877642138 | EF4: 1.559094239 | EG4: 1.667113351 | EH4: 0.9536242672 | EI4: 0.7492678138 | EJ4: 0.7377407354 | EK4: 0.7378644899 | EL4: 0.5852454097 | EM4: 1.555195174 | EN4: 2.244464862 | EO4: 1.065216853 | EP4: 2.157371117 | EQ4: 1.759390897 | ER4: 2.458866113 | ES4: 1.181693027 | ET4: 1.130360713 | EU4: 0.8511132823 | EV4: 1.199547746 | EW4: 0.9604009672 | EX4: 0.7240609915 | EY4: 0.9004412452 | EZ4: 0.3420228188 | FA4: 0.1917402545 | FB4: 1.294029658 | FC4: 0.33622586 | FD4: 0.5030191237 | FE4: 0.6939053571 | FF4: 0.5948415486 | FG4: 0.6611436361 | FH4: 0.7677058856 | FI4: 0.7969298016 | FJ4: 0.9131548825 | FK4: 1.158970013 | FL4: 1.03890483 | FM4: 1.401405886 | FN4: 1.963518989 | FO4: 0.8668747863 | FP4: 1.730167419 | FQ4: 1.495338356 | FR4: 1.413599478 | FS4: 1.373051037 | FT4: 1.107338345 | FU4: 0.8216137741 | FV4: 0.835823727 | FW4: 0.7660712619 | FX4: 1.29620798 | FY4: 1.291235354 | FZ4: 1.68193127 | GA4: 1.503193831 | GB4: 1.397511188 | GC4: 1.019050341 | GD4: 0.8555860453 | GE4: 0.8760478884 | GF4: 0.9815461169 | GG4: 1.132244987 | GH4: 1.073537715 | GI4: 1.173814894 | GJ4: 1.266778441 | GK4: 1.167236014 | GL4: 1.012669416 | GM4: 0.7696049643 | GN4: 0.5414228111 | GO4: 0.9216843379 | GP4: 0.4223503891 | GQ4: 0.3766900992 | GR4: 0.4889843928 | GS4: 0.7613440884 | GT4: 0.6954064951 | GU4: 0.5240793456 | GV4: 0.2950015239 | GW4: 0.2656700375 | GX4: 0.4271081177 | GY4: 0.6777340615 | GZ4: 0.6472338858 | HA4: 0.6020307754 | HB4: 0.5512727533 | HC4: 0.4133261911 | HD4: 0.4490275048 | HE4: 1.344146594 | HF4: 0.8994056973 | HG4: 0.5162806458 | HH4: 0.4396037537 | HI4: 0.6908746524 | HJ4: 0.9348684883 | HK4: 0.952820818 | HL4: 1.983213709 | HM4: 2.141245737 | HN4: 1.30935458 | HO4: 0.9821053988 | HP4: 0.4594399405 | HQ4: 1.330756284 | HR4: 0.9714739698 | HS4: 0.9984332887 | HT4: 1.096798847 | HU4: 1.126865866 | HV4: 0.6995168912 | HW4: 0.5559155367 | HX4: 0.6349972992 | HY4: 0.5440677831 | HZ4: 0.2432719013 | IA4: 0.1775044549 | IB4: 0.7542449097 | IC4: 0.3776607766 | ID4: 0.3160958149 | IE4: 0.3946869513 | IF4: 1.425547559 | IG4: 1.385851674 | IH4: 1.677348601 | II4: 1.165150873 | IJ4: 0.5267188348 | IK4: 0.6586801011 | IL4: 0.4089566714 | IM4: 0.6152592409 | IN4: 0.7853462919 | IO4: 0.7837779439 | IP4: 0.8176952288 | IQ4: 1.373834896 | IR4: 0.8568323576 | IS4: 0.6667837768 | IT4: 0.8095158815 | IU4: 0.7500654947 | IV4: 0.6580725885 | IW4: 0.5771585512 | IX4: 0.4916105181 | IY4: 0.4797749343 | IZ4: 0.8258410595 | JA4: 1.55889631 | JB4: 0.9229378306 | JC4: 1.804967941 | JD4: 1.859419619 | JE4: 1.97134646 | JF4: 1.430386154 | JG4: 1.259650857 | JH4: 1.861475807 | JI4: 1.844054606 | JJ4: 0.9871824192 | JK4: 0.8144125835 | JL4: 0.7356244608 | JM4: 1.075094438 | JN4: 1.455453304 | JO4: 1.534540851 | JP4: 1.393289283 | JQ4: 1.17902175 | JR4: 1.254217305 | JS4: 1.159381668 | JT4: 0.845208294 | JU4: 0.7530926777 | JV4: 0.753961494 | JW4: 0.8382055183 | JX4: 0.6608057959 | JY4: 0.3921874541 | JZ4: 0.9101031747 | KA4: 0.4405340422 | KB4: 0.9516240967 | KC4: 0.2847726478 | KD4: 0.3606257779 | KE4: 0.2921489002 | KF4: 0.7394510014 | KG4: 1.078207617 | KH4: 0.6563357739 | KI4: 0.5967254968 | KJ4: 0.4739776393 | KK4: 0.5227801156 | KL4: 0.7393181537 | KM4: 0.7674381956 | KN4: 0.8327395906 | KO4: 0.6140991859 | KP4: 1.184047553 | KQ4: 1.381109962 | KR4: 2.455681448 | KS4: 2.111860497 | KT4: 1.211390049 | KU4: 1.439008312 | KV4: 1.836670231 | KW4: 1.543921151 | KX4: 1.033161792 | KY4: 1.179153462 | KZ4: 0.9443318982 | LA4: 0.721398339 | LB4: 1.408356843 | LC4: 1.534088225 | LD4: 2.104107958 | LE4: 1.413011569 | LF4: 1.585211276 | LG4: 0.7865590948 | LH4: 0.9715591931 | LI4: 1.371905203 | LJ4: 1.372436027 | LK4: 1.358966364 | LL4: 1.339770586 | LM4: 1.265462591 | LN4: 0.930881563 | LO4: 1.345073817 | LP4: 0.5935147441 | LQ4: 1.259592384 | LR4: 1.118403074 | LS4: 0.8244099519 | LT4: 0.8176383534 | LU4: 0.7576433479 | LV4: 0.6270085718 | LW4: 1.139701932 | LX4: 1.225440898 | LY4: 1.056892706 | LZ4: 0.7363300076 | MA4: 0.3418554648 | MB4: 0.8206466345 | MC4: 1.379267518 | MD4: 1.369460665 | ME4: 1.22549041 | MF4: 1.670737391 | MG4: 1.678280361 | MH4: 1.04482155 | MI4: 0.9885214331 | MJ4: 0.6232694401 | MK4: 0.6405871108 | ML4: 0.4940692477 | MM4: 0.5817410641 | MN4: 0.3689313768 | MO4: 1.124366374 | MP4: 0.268018147 | MQ4: 1.112352092 | MR4: 0.70273799 | MS4: 0.4117616833 | MT4: 0.5980591667 | MU4: 0.5337448588 | MV4: 0.6093378942 | MW4: 0.4478634118 | MX4: 0.4023116825 | MY4: 0.2821872991 | MZ4: 0.1961752832 | NA4: 0.4992742402 | NB4: 0.5269172642 | NC4: 0.6992994407 | ND4: 0.761722064 | NE4: 2.224508534 | NF4: 1.844597424 | NG4: 1.12401624 | NH4: 1.811750409 | NI4: 1.608809449 | NJ4: 2.227817918 | NK4: 1.176054428 | NL4: 0.6347802296 | NM4: 1.053763969 | NN4: 0.8383215294 | NO4: 1.28218313 | NP4: 0.5418940989 | NQ4: 0.9753878533 | NR4: 0.5480578715 | NS4: 0.6405904974 | NT4: 0.6949054611 | NU4: 0.5473195955 | NV4: 0.4627841407 | NW4: 0.6496481568 | NX4: 0.6409890754 | NY4: 0.7340291742 | NZ4: 1.648727082 | OA4: 1.946182602 | OB4: 0.8801258005 | OC4: 1.197582575 | OD4: 0.8193586754 | OE4: 0.910087594 | OF4: 1.139727677 | OG4: - | OH4: - | OI4: - | OJ4: - | OK4: - | OL4: - | OM4: - | ON4: - | OO4: 1.017443688
B5: Probabilidad de ser superado (%) | C5: - | D5: - | E5: - | F5: - | G5: - | H5: - | I5: - | J5: - | K5: - | L5: - | M5: - | N5: - | O5: - | P5: 51.32922039 | Q5: 58.49210588 | R5: 5.149692466 | S5: 30.7867861 | T5: 59.58012023 | U5: 42.06960856 | V5: 30.14010397 | W5: 23.98856495 | X5: 66.3750833 | Y5: 65.99176688 | Z5: 53.76342495 | AA5: 88.6638798 | AB5: 49.04787837 | AC5: 96.94757382 | AD5: 97.41050011 | AE5: 99.07706939 | AF5: 40.15184954 | AG5: 89.49356652 | AH5: 26.01934328 | AI5: 11.95224619 | AJ5: 10.05064013 | AK5: 11.2326621 | AL5: 22.19717083 | AM5: 50.59503287 | AN5: 41.96886511 | AO5: 82.72782214 | AP5: 92.20480708 | AQ5: 94.49270368 | AR5: 79.0352677 | AS5: 89.47863028 | AT5: 30.79445923 | AU5: 14.19989133 | AV5: 27.31219108 | AW5: 36.69784265 | AX5: 8.904220868 | AY5: 1.666222123 | AZ5: 36.1743308 | BA5: 58.83479052 | BB5: 63.99525757 | BC5: 25.18814636 | BD5: 35.59778918 | BE5: 48.0271324 | BF5: 86.54995803 | BG5: 14.07145949 | BH5: 34.3787334 | BI5: 40.54267579 | BJ5: 50.95954061 | BK5: 46.25869159 | BL5: 50.00980445 | BM5: 48.76298644 | BN5: 86.82459003 | BO5: 52.01261503 | BP5: 45.92057416 | BQ5: 30.14827469 | BR5: 46.46497909 | BS5: 98.22994939 | BT5: 93.21457846 | BU5: 77.9811148 | BV5: 38.14487605 | BW5: 55.39989851 | BX5: 41.55358637 | BY5: 93.32824256 | BZ5: 66.50808984 | CA5: 20.23516242 | CB5: 66.1967247 | CC5: 4.330627335 | CD5: 10.75824394 | CE5: 30.06218507 | CF5: 18.14993215 | CG5: 9.544662081 | CH5: 18.01969314 | CI5: 12.3573547 | CJ5: 3.226601028 | CK5: 22.38944551 | CL5: 71.02080522 | CM5: 47.73906638 | CN5: 9.373939187 | CO5: 5.295016645 | CP5: 10.08484874 | CQ5: 27.54460355 | CR5: 70.78165437 | CS5: 91.83937365 | CT5: 68.99726176 | CU5: 8.881347393 | CV5: 4.340136905 | CW5: 1.165132331 | CX5: 16.63566989 | CY5: 67.08792036 | CZ5: 4.193245775 | DA5: 5.080109353 | DB5: 9.867146618 | DC5: 25.15612934 | DD5: 25.12604603 | DE5: 69.39495972 | DF5: 11.40001637 | DG5: 8.73667151 | DH5: 6.134135012 | DI5: 28.63773586 | DJ5: 9.385093549 | DK5: 5.46295782 | DL5: 44.26455926 | DM5: 97.69635579 | DN5: 95.11582596 | DO5: 37.14761541 | DP5: 87.6547485 | DQ5: 84.96648881 | DR5: 67.08042436 | DS5: 79.30021152 | DT5: 34.26648421 | DU5: 61.81215404 | DV5: 66.83057589 | DW5: 27.57093322 | DX5: 2.803113342 | DY5: 8.195324495 | DZ5: 48.67910148 | EA5: 54.23903898 | EB5: 71.8912619 | EC5: 86.25610561 | ED5: 88.39220551 | EE5: 98.37122685 | EF5: 9.270358692 | EG5: 5.478037739 | EH5: 41.52161753 | EI5: 61.12165554 | EJ5: 69.32448527 | EK5: 81.50348963 | EL5: 82.56763693 | EM5: 19.18782608 | EN5: 6.613726847 | EO5: 38.04687691 | EP5: 7.036286975 | EQ5: 10.67471135 | ER5: 1.989602353 | ES5: 25.18314919 | ET5: 29.8788367 | EU5: 52.50293666 | EV5: 24.30193584 | EW5: 44.3475385 | EX5: 82.99448011 | EY5: 55.34538213 | EZ5: 96.41648705 | FA5: 99.59562858 | FB5: 16.64863328 | FC5: 95.56872493 | FD5: 79.85875855 | FE5: 66.16137225 | FF5: 83.01618297 | FG5: 82.94949689 | FH5: 62.32131032 | FI5: 56.12674348 | FJ5: 49.26692452 | FK5: 31.75863675 | FL5: 44.74390692 | FM5: 24.59552131 | FN5: 10.03771583 | FO5: 65.49545854 | FP5: 13.65208379 | FQ5: 16.50785553 | FR5: 16.50470502 | FS5: 15.29804042 | FT5: 31.87840943 | FU5: 55.90958732 | FV5: 52.19478098 | FW5: 66.00501542 | FX5: 20.7742798 | FY5: 29.5536042 | FZ5: 15.64334733 | GA5: 20.37342126 | GB5: 10.92313813 | GC5: 42.39815239 | GD5: 48.16402726 | GE5: 48.45602981 | GF5: 40.9122269 | GG5: 29.71950948 | GH5: 30.76334929 | GI5: 25.73602308 | GJ5: 20.56526659 | GK5: 30.9933474 | GL5: 46.63393078 | GM5: 64.44014138 | GN5: 81.48050792 | GO5: 57.51711284 | GP5: 90.5421309 | GQ5: 90.61072281 | GR5: 86.45478529 | GS5: 64.47105517 | GT5: 79.18160559 | GU5: 89.31679922 | GV5: 98.68517827 | GW5: 99.86993982 | GX5: 99.47169523 | GY5: 74.65976153 | GZ5: 75.0414798 | HA5: 76.31867353 | HB5: 97.40023019 | HC5: 91.1488071 | HD5: 84.73803513 | HE5: 19.06637586 | HF5: 49.07888515 | HG5: 94.89430319 | HH5: 95.26949035 | HI5: 67.411444 | HJ5: 46.96921741 | HK5: 54.78658295 | HL5: 9.063166776 | HM5: 7.560947053 | HN5: 27.58345979 | HO5: 48.91958491 | HP5: 87.88525659 | HQ5: 21.76850765 | HR5: 40.4854261 | HS5: 39.35220374 | HT5: 32.82647491 | HU5: 26.74236237 | HV5: 66.47415318 | HW5: 88.48253939 | HX5: 91.18927945 | HY5: 85.84004232 | HZ5: 99.18548687 | IA5: 99.72707407 | IB5: 80.88289519 | IC5: 93.37283479 | ID5: 94.61461635 | IE5: 93.57100838 | IF5: 13.29657196 | IG5: 13.7802543 | IH5: 5.600387095 | II5: 26.23584017 | IJ5: 90.85445347 | IK5: 89.27552511 | IL5: 94.57614847 | IM5: 77.79205258 | IN5: 60.5568729 | IO5: 77.11208825 | IP5: 57.31408014 | IQ5: 20.24295437 | IR5: 50.1850382 | IS5: 75.32523388 | IT5: 65.30017904 | IU5: 64.45086785 | IV5: 70.96997065 | IW5: 86.59475968 | IX5: 98.33996463 | IY5: 90.4476341 | IZ5: 59.70860519 | JA5: 18.67890961 | JB5: 57.33533717 | JC5: 12.13238095 | JD5: 9.079083511 | JE5: 5.219087292 | JF5: 13.12513321 | JG5: 20.41885834 | JH5: 3.26747917 | JI5: 5.577037092 | JJ5: 41.69683996 | JK5: 72.47063055 | JL5: 69.53571939 | JM5: 41.30996596 | JN5: 21.95054759 | JO5: 6.059862434 | JP5: 22.490947 | JQ5: 25.01118859 | JR5: 31.52294137 | JS5: 33.70900381 | JT5: 68.82464196 | JU5: 72.28239944 | JV5: 59.35996103 | JW5: 62.61054421 | JX5: 90.96846157 | JY5: 94.64054853 | JZ5: 55.28046705 | KA5: 80.14688254 | KB5: 55.05705373 | KC5: 94.68165604 | KD5: 87.42467907 | KE5: 97.83776607 | KF5: 74.34889273 | KG5: 41.96116293 | KH5: 84.1878359 | KI5: 84.3064958 | KJ5: 99.10495172 | KK5: 97.56478734 | KL5: 60.28795022 | KM5: 66.30555896 | KN5: 49.07702618 | KO5: 96.83762176 | KP5: 31.69815796 | KQ5: 19.16287657 | KR5: 4.06514761 | KS5: 3.333112529 | KT5: 31.21433005 | KU5: 10.28954758 | KV5: 0.6275541938 | KW5: 4.039690247 | KX5: 42.61246028 | KY5: 24.29509253 | KZ5: 51.10705971 | LA5: 56.52624063 | LB5: 8.643227626 | LC5: 21.30887812 | LD5: 6.223632664 | LE5: 27.59995566 | LF5: 16.41049982 | LG5: 81.20231375 | LH5: 45.15339532 | LI5: 9.915646658 | LJ5: 11.79439032 | LK5: 15.01949112 | LL5: 11.63877439 | LM5: 30.21369735 | LN5: 42.47616312 | LO5: 14.5638532 | LP5: 72.92128192 | LQ5: 29.7840516 | LR5: 43.6064204 | LS5: 73.50363266 | LT5: 75.12172457 | LU5: 71.65417039 | LV5: 81.56955939 | LW5: 29.95212597 | LX5: 24.99753949 | LY5: 27.88825187 | LZ5: 67.19029042 | MA5: 89.5383721 | MB5: 78.99594181 | MC5: 25.19611441 | MD5: 26.02279215 | ME5: 38.06917836 | MF5: 14.15049852 | MG5: 4.712333286 | MH5: 39.48710656 | MI5: 38.24195265 | MJ5: 91.42362736 | MK5: 87.73954439 | ML5: 89.83538949 | MM5: 80.10619283 | MN5: 84.80042366 | MO5: 37.33798007 | MP5: 96.24051985 | MQ5: 37.96966475 | MR5: 73.68029118 | MS5: 99.6052413 | MT5: 96.8286191 | MU5: 95.08790175 | MV5: 83.38682014 | MW5: 98.70737919 | MX5: 99.01571192 | MY5: 99.31737358 | MZ5: 99.59421353 | NA5: 69.65921968 | NB5: 99.28242607 | NC5: 55.7167449 | ND5: 62.86331065 | NE5: 9.546915811 | NF5: 11.00545329 | NG5: 38.63601983 | NH5: 2.982458618 | NI5: 4.649545078 | NJ5: 0.3585056352 | NK5: 23.2275928 | NL5: 67.60069602 | NM5: 32.71870175 | NN5: 37.75802106 | NO5: 17.17213976 | NP5: 68.68881185 | NQ5: 45.83884187 | NR5: 86.56942114 | NS5: 90.94079414 | NT5: 89.08559828 | NU5: 91.21459071 | NV5: 94.39049027 | NW5: 79.99945454 | NX5: 78.89881543 | NY5: 54.73535416 | NZ5: 12.78645873 | OA5: 6.540737866 | OB5: 63.69545232 | OC5: 23.87102752 | OD5: 59.94274294 | OE5: 59.40465279 | OF5: 48.13718928 | OG5: - | OH5: - | OI5: - | OJ5: - | OK5: - | OL5: - | OM5: - | ON5: - | OO5: 49.01449964
B7: Reservas hidroeléctricas mensuales (GWh) | C7: 1990-01-01 | D7: 1990-02-01 | E7: 1990-03-01 | F7: 1990-04-01 | G7: 1990-05-01 | H7: 1990-06-01 | I7: 1990-07-01 | J7: 1990-08-01 | K7: 1990-09-01 | L7: 1990-10-01 | M7: 1990-11-01 | N7: 1990-12-01 | O7: 1991-01-01 | P7: 1991-02-01 | Q7: 1991-03-01 | R7: 1991-04-01 | S7: 1991-05-01 | T7: 1991-06-01 | U7: 1991-07-01 | V7: 1991-08-01 | W7: 1991-09-01 | X7: 1991-10-01 | Y7: 1991-11-01 | Z7: 1991-12-01 | AA7: 1992-01-01 | AB7: 1992-02-01 | AC7: 1992-03-01 | AD7: 1992-04-01 | AE7: 1992-05-01 | AF7: 1992-06-01 | AG7: 1992-07-01 | AH7: 1992-08-01 | AI7: 1992-09-01 | AJ7: 1992-10-01 | AK7: 1992-11-01 | AL7: 1992-12-01 | AM7: 1993-01-01 | AN7: 1993-02-01 | AO7: 1993-03-01 | AP7: 1993-04-01 | AQ7: 1993-05-01 | AR7: 1993-06-01 | AS7: 1993-07-01 | AT7: 1993-08-01 | AU7: 1993-09-01 | AV7: 1993-10-01 | AW7: 1993-11-01 | AX7: 1993-12-01 | AY7: 1994-01-01 | AZ7: 1994-02-01 | BA7: 1994-03-01 | BB7: 1994-04-01 | BC7: 1994-05-01 | BD7: 1994-06-01 | BE7: 1994-07-01 | BF7: 1994-08-01 | BG7: 1994-09-01 | BH7: 1994-10-01 | BI7: 1994-11-01 | BJ7: 1994-12-01 | BK7: 1995-01-01 | BL7: 1995-02-01 | BM7: 1995-03-01 | BN7: 1995-04-01 | BO7: 1995-05-01 | BP7: 1995-06-01 | BQ7: 1995-07-01 | BR7: 1995-08-01 | BS7: 1995-09-01 | BT7: 1995-10-01 | BU7: 1995-11-01 | BV7: 1995-12-01 | BW7: 1996-01-01 | BX7: 1996-02-01 | BY7: 1996-03-01 | BZ7: 1996-04-01 | CA7: 1996-05-01 | CB7: 1996-06-01 | CC7: 1996-07-01 | CD7: 1996-08-01 | CE7: 1996-09-01 | CF7: 1996-10-01 | CG7: 1996-11-01 | CH7: 1996-12-01 | CI7: 1997-01-01 | CJ7: 1997-02-01 | CK7: 1997-03-01 | CL7: 1997-04-01 | CM7: 1997-05-01 | CN7: 1997-06-01 | CO7: 1997-07-01 | CP7: 1997-08-01 | CQ7: 1997-09-01 | CR7: 1997-10-01 | CS7: 1997-11-01 | CT7: 1997-12-01 | CU7: 1998-01-01 | CV7: 1998-02-01 | CW7: 1998-03-01 | CX7: 1998-04-01 | CY7: 1998-05-01 | CZ7: 1998-06-01 | DA7: 1998-07-01 | DB7: 1998-08-01 | DC7: 1998-09-01 | DD7: 1998-10-01 | DE7: 1998-11-01 | DF7: 1998-12-01 | DG7: 1999-01-01 | DH7: 1999-02-01 | DI7: 1999-03-01 | DJ7: 1999-04-01 | DK7: 1999-05-01 | DL7: 1999-06-01 | DM7: 1999-07-01 | DN7: 1999-08-01 | DO7: 1999-09-01 | DP7: 1999-10-01 | DQ7: 1999-11-01 | DR7: 1999-12-01 | DS7: 2000-01-01 | DT7: 2000-02-01 | DU7: 2000-03-01 | DV7: 2000-04-01 | DW7: 2000-05-01 | DX7: 2000-06-01 | DY7: 2000-07-01 | DZ7: 2000-08-01 | EA7: 2000-09-01 | EB7: 2000-10-01 | EC7: 2000-11-01 | ED7: 2000-12-01 | EE7: 2001-01-01 | EF7: 2001-02-01 | EG7: 2001-03-01 | EH7: 2001-04-01 | EI7: 2001-05-01 | EJ7: 2001-06-01 | EK7: 2001-07-01 | EL7: 2001-08-01 | EM7: 2001-09-01 | EN7: 2001-10-01 | EO7: 2001-11-01 | EP7: 2001-12-01 | EQ7: 2002-01-01 | ER7: 2002-02-01 | ES7: 2002-03-01 | ET7: 2002-04-01 | EU7: 2002-05-01 | EV7: 2002-06-01 | EW7: 2002-07-01 | EX7: 2002-08-01 | EY7: 2002-09-01 | EZ7: 2002-10-01 | FA7: 2002-11-01 | FB7: 2002-12-01 | FC7: 2003-01-01 | FD7: 2003-02-01 | FE7: 2003-03-01 | FF7: 2003-04-01 | FG7: 2003-05-01 | FH7: 2003-06-01 | FI7: 2003-07-01 | FJ7: 2003-08-01 | FK7: 2003-09-01 | FL7: 2003-10-01 | FM7: 2003-11-01 | FN7: 2003-12-01 | FO7: 2004-01-01 | FP7: 2004-02-01 | FQ7: 2004-03-01 | FR7: 2004-04-01 | FS7: 2004-05-01 | FT7: 2004-06-01 | FU7: 2004-07-01 | FV7: 2004-08-01 | FW7: 2004-09-01 | FX7: 2004-10-01 | FY7: 2004-11-01 | FZ7: 2004-12-01 | GA7: 2005-01-01 | GB7: 2005-02-01 | GC7: 2005-03-01 | GD7: 2005-04-01 | GE7: 2005-05-01 | GF7: 2005-06-01 | GG7: 2005-07-01 | GH7: 2005-08-01 | GI7: 2005-09-01 | GJ7: 2005-10-01 | GK7: 2005-11-01 | GL7: 2005-12-01 | GM7: 2006-01-01 | GN7: 2006-02-01 | GO7: 2006-03-01 | GP7: 2006-04-01 | GQ7: 2006-05-01 | GR7: 2006-06-01 | GS7: 2006-07-01 | GT7: 2006-08-01 | GU7: 2006-09-01 | GV7: 2006-10-01 | GW7: 2006-11-01 | GX7: 2006-12-01 | GY7: 2007-01-01 | GZ7: 2007-02-01 | HA7: 2007-03-01 | HB7: 2007-04-01 | HC7: 2007-05-01 | HD7: 2007-06-01 | HE7: 2007-07-01 | HF7: 2007-08-01 | HG7: 2007-09-01 | HH7: 2007-10-01 | HI7: 2007-11-01 | HJ7: 2007-12-01 | HK7: 2008-01-01 | HL7: 2008-02-01 | HM7: 2008-03-01 | HN7: 2008-04-01 | HO7: 2008-05-01 | HP7: 2008-06-01 | HQ7: 2008-07-01 | HR7: 2008-08-01 | HS7: 2008-09-01 | HT7: 2008-10-01 | HU7: 2008-11-01 | HV7: 2008-12-01 | HW7: 2009-01-01 | HX7: 2009-02-01 | HY7: 2009-03-01 | HZ7: 2009-04-01 | IA7: 2009-05-01 | IB7: 2009-06-01 | IC7: 2009-07-01 | ID7: 2009-08-01 | IE7: 2009-09-01 | IF7: 2009-10-01 | IG7: 2009-11-01 | IH7: 2009-12-01 | II7: 2010-01-31 | IJ7: 2010-02-28 | IK7: 2010-03-31 | IL7: 2010-04-30 | IM7: 2010-05-31 | IN7: 2010-06-30 | IO7: 2010-07-31 | IP7: 2010-08-31 | IQ7: 2010-09-30 | IR7: 2010-10-31 | IS7: 2010-11-30 | IT7: 2010-12-31 | IU7: 2011-01-31 | IV7: 2011-02-28 | IW7: 2011-03-31 | IX7: 2011-04-30 | IY7: 2011-05-31 | IZ7: 2011-06-30 | JA7: 2011-07-31 | JB7: 2011-08-31 | JC7: 2011-09-30 | JD7: 2011-10-31 | JE7: 2011-11-30 | JF7: 2011-12-31 | JG7: 2012-01-31 | JH7: 2012-02-29 | JI7: 2012-03-31 | JJ7: 2012-04-30 | JK7: 2012-05-31 | JL7: 2012-06-30 | JM7: 2012-07-31 | JN7: 2012-08-31 | JO7: 2012-09-30 | JP7: 2012-10-31 | JQ7: 2012-11-30 | JR7: 2012-12-31 | JS7: 2013-01-31 | JT7: 2013-02-28 | JU7: 2013-03-31 | JV7: 2013-04-30 | JW7: 2013-05-31 | JX7: 2013-06-30 | JY7: 2013-07-31 | JZ7: 2013-08-31 | KA7: 2013-09-30 | KB7: 2013-10-31 | KC7: 2013-11-30 | KD7: 2013-12-31 | KE7: 2014-01-31 | KF7: 2014-02-28 | KG7: 2014-03-31 | KH7: 2014-04-30 | KI7: 2014-05-31 | KJ7: 2014-06-30 | KK7: 2014-07-31 | KL7: 2014-08-31 | KM7: 2014-09-30 | KN7: 2014-10-31 | KO7: 2014-11-30 | KP7: 2014-12-31 | KQ7: 2015-01-31 | KR7: 2015-02-28 | KS7: 2015-03-31 | KT7: 2015-04-30 | KU7: 2015-05-31 | KV7: 2015-06-30 | KW7: 2015-07-31 | KX7: 2015-08-31 | KY7: 2015-09-30 | KZ7: 2015-10-31 | LA7: 2015-11-30 | LB7: 2015-12-31 | LC7: 2016-01-31 | LD7: 2016-02-29 | LE7: 2016-03-28 | LF7: 2016-04-30 | LG7: 2016-05-28 | LH7: 2016-06-28 | LI7: 2016-07-28 | LJ7: 2016-08-28 | LK7: 2016-09-28 | LL7: 2016-10-28 | LM7: 2016-11-28 | LN7: 2016-12-28 | LO7: 2017-01-28 | LP7: 2017-02-28 | LQ7: 2017-03-28 | LR7: 2017-04-28 | LS7: 2017-05-28 | LT7: 2017-06-28 | LU7: 2017-07-28 | LV7: 2017-08-28 | LW7: 2017-09-28 | LX7: 2017-10-28 | LY7: 2017-11-28 | LZ7: 2017-12-28 | MA7: 2018-01-28 | MB7: 2018-02-28 | MC7: 2018-03-28 | MD7: 2018-04-28 | ME7: 2018-05-28 | MF7: 2018-06-28 | MG7: 2018-07-28 | MH7: 2018-08-28 | MI7: 2018-09-28 | MJ7: 2018-10-28 | MK7: 2018-11-28 | ML7: 2018-12-28 | MM7: 2019-01-28 | MN7: 2019-02-28 | MO7: 2019-03-28 | MP7: 2019-04-28 | MQ7: 2019-05-28 | MR7: 2019-06-28 | MS7: 2019-07-28 | MT7: 2019-08-28 | MU7: 2019-09-28 | MV7: 2019-10-28 | MW7: 2019-11-28 | MX7: 2019-12-28 | MY7: 2020-01-31 | MZ7: 2020-02-28 | NA7: 2020-03-31 | NB7: 2020-04-30 | NC7: 2020-05-31 | ND7: 2020-06-30 | NE7: 2020-07-31 | NF7: 2020-08-31 | NG7: 2020-09-30 | NH7: 2020-10-31 | NI7: 2020-11-30 | NJ7: 2020-12-31
B8: Reservas embalses anuales (GWh) | C8: 4518.889 | D8: 4412.878 | E8: 3867 | F8: 4115.473 | G8: 4237.202 | H8: 3973.035 | I8: 3326.605 | J8: 2871.065 | K8: 2462.656 | L8: 2532.573 | M8: 2541.818 | N8: 2536.102 | O8: 3169.56 | P8: 3282.141 | Q8: 4921.962 | R8: 4678.636 | S8: 4405.071 | T8: 4140.108 | U8: 3572.577 | V8: 3189.131 | W8: 2734.159 | X8: 2409.425 | Y8: 2547.623 | Z8: 2331.767 | AA8: 2290.836 | AB8: 2304.793 | AC8: 2398.375 | AD8: 3432.8 | AE8: 3729.054 | AF8: 3986.837 | AG8: 3500.879 | AH8: 3149.456 | AI8: 2853.838 | AJ8: 2965.747 | AK8: 2991.867 | AL8: 3358.31 | AM8: 3044.603 | AN8: 2816.158 | AO8: 3408.971 | AP8: 3846.562 | AQ8: 4998.771 | AR8: 5144.641 | AS8: 4387.179 | AT8: 3865.239 | AU8: 3613.47 | AV8: 4785.032 | AW8: 4109.815 | AX8: 4073.244 | AY8: 4948.158 | AZ8: 4943.618 | BA8: 4973.4 | BB8: 4662.917 | BC8: 5782.367 | BD8: 5384.288 | BE8: 4614.1 | BF8: 3905.92 | BG8: 3501.448 | BH8: 3576.017 | BI8: 3685.285 | BJ8: 3613.369 | BK8: 4430.575 | BL8: 4959.809 | BM8: 4800.825 | BN8: 4283.078 | BO8: 4188.879 | BP8: 3752.144 | BQ8: 3201.011 | BR8: 2642.314 | BS8: 2460.133 | BT8: 2249.016 | BU8: 2815.701 | BV8: 4785.278 | BW8: 6334.585 | BX8: 5787.32 | BY8: 5885.276 | BZ8: 6064.301 | CA8: 6228.814 | CB8: 5807.593 | CC8: 5019.417 | CD8: 4537.519 | CE8: 4012.035 | CF8: 3690.046 | CG8: 3978.882 | CH8: 5322.933 | CI8: 5640.377 | CJ8: 5435.125 | CK8: 4962.421 | CL8: 4571.345 | CM8: 4789.07 | CN8: 5098.976 | CO8: 4707.876 | CP8: 4177.246 | CQ8: 3622.405 | CR8: 3381.203 | CS8: 5227.016 | CT8: 6485.882 | CU8: 5950.135 | CV8: 5555.878 | CW8: 5222.704 | CX8: 6136.202 | CY8: 6360.035 | CZ8: 6123.356 | DA8: 5181.111 | DB8: 4351.776 | DC8: 3818.89 | DD8: 3691.75 | DE8: 3389.291 | DF8: 3355.341 | DG8: 3750.925 | DH8: 3849.476 | DI8: 4323.773 | DJ8: 4501.722 | DK8: 5148.008 | DL8: 4673.3 | DM8: 3923.537 | DN8: 3440.86 | DO8: 3451.763 | DP8: 4373.313 | DQ8: 4073.213 | DR8: 4124.621 | DS8: 3628.779 | DT8: 3574.549 | DU8: 3335.304 | DV8: 5414.572 | DW8: 6197.309 | DX8: 5818.106 | DY8: 5049.173 | DZ8: 4213.245 | EA8: 3417.259 | EB8: 2974.686 | EC8: 4140.843 | ED8: 5898.325 | EE8: 6564.499 | EF8: 6046.938 | EG8: 6779.344 | EH8: 6260.924 | EI8: 6398.753 | EJ8: 5924.355 | EK8: 5202.321 | EL8: 4291.338 | EM8: 3668.405 | EN8: 3508.185 | EO8: 2922.875 | EP8: 2581.07 | EQ8: 2863.164 | ER8: 3433.757 | ES8: 4170.707 | ET8: 4403.856 | EU8: 4568.305 | EV8: 4427.999 | EW8: 3886.332 | EX8: 3521.309 | EY8: 3413.792 | EZ8: 3714.947 | FA8: 4829.467 | FB8: 6140.304 | FC8: 6296.198 | FD8: 6313.704 | FE8: 6287.747 | FF8: 6634.28 | FG8: 6471.851 | FH8: 6079.232 | FI8: 5244.078 | FJ8: 4564.443 | FK8: 4110.968 | FL8: 4327.219 | FM8: 5210.186 | FN8: 5232.867 | FO8: 5536.879 | FP8: 5121.251 | FQ8: 5186.498 | FR8: 5319.467 | FS8: 5433.917 | FT8: 5018.074 | FU8: 4334.779 | FV8: 3709.336 | FW8: 3364.32 | FX8: 3373.843 | FY8: 3381.607 | FZ8: 3502.721 | GA8: 3764.182 | GB8: 3742.664 | GC8: 3912.181 | GD8: 4588.837 | GE8: 4749.956 | GF8: 4284.048 | GG8: 3544.809 | GH8: 2966.528 | GI8: 2586.61 | GJ8: 2789.698 | GK8: 3112.796 | GL8: 3509.11 | GM8: 3705.378 | GN8: 3971.444 | GO8: 5218.691 | GP8: 5314.458 | GQ8: 4866.883 | GR8: 4411.729 | GS8: 3715.586251 | GT8: 3302.394626 | GU8: 2923.999816 | GV8: 3906.440646 | GW8: 5832.554939 | GX8: 5357.424894 | GY8: 5204.620499 | GZ8: 6044.115276 | HA8: 5655.595014 | HB8: 6066.341757 | HC8: 6508.594195 | HD8: 6405.744514 | HE8: 5114.735798 | HF8: 4167.471905 | HG8: 3525.776551 | HH8: 2915.2033 | HI8: 2709.317196 | HJ8: 2605.566013 | HK8: 3020.173469 | HL8: 3280.601482 | HM8: 3740.923747 | HN8: 5336.64854 | HO8: 6050.646235 | HP8: 6070.359419 | HQ8: 5143.075302 | HR8: 4267.33252 | HS8: 3611.134226 | HT8: 3301.224627 | HU8: 3592.306382 | HV8: 3815.84 | HW8: 4654.894325 | HX8: 5030.850829 | HY8: 5108.34149 | HZ8: 5174.112914 | IA8: 5332.602285 | IB8: 5051.448758 | IC8: 4391.008158 | ID8: 3741.312155 | IE8: 3279.139918 | IF8: 3057.411871 | IG8: 3381.738014 | IH8: 5088.919467 | II8: 5911.022739 | IJ8: 6653.433529 | IK8: 6968.780288 | IL8: 6837.783165 | IM8: 6929.359633 | IN8: 7023.469981 | IO8: 6142.224929 | IP8: 5154.259385 | IQ8: 4409.727026 | IR8: 4229.872771 | IS8: 4713.244592 | IT8: 5556.387089 | IU8: 5987.488667 | IV8: 6306.628694 | IW8: 6549.97495 | IX8: 6497.612934 | IY8: 6361.551043 | IZ8: 5992.344496 | JA8: 5274.392912 | JB8: 4536.75272 | JC8: 3970.464063 | JD8: 3528.774705 | JE8: 4034.398164 | JF8: 3834.436004 | JG8: 3695.529327 | JH8: 3847.024761 | JI8: 3718.153728 | JJ8: 4278.448831 | JK8: 5186.905685 | JL8: 4802.837273 | JM8: 4067.122194 | JN8: 3334.573384 | JO8: 2827.465439 | JP8: 2841.055835 | JQ8: 3108.003526 | JR8: 3672.272087 | JS8: 4918.454141 | JT8: 5132.093386 | JU8: 6910.931012 | JV8: 7115.420352 | JW8: 7026.654025 | JX8: 6745.346614 | JY8: 6055.024755 | JZ8: 5234.329019 | KA8: 4430.20062 | KB8: 4360.170986 | KC8: 4394.404246 | KD8: 4657.92307 | KE8: 6314.417113 | KF8: 6672.184964 | KG8: 6458.753047 | KH8: 6854.382042 | KI8: 6789.461022 | KJ8: 6523.588734 | KK8: 5710.686484 | KL8: 4785.582215 | KM8: 4263.145236 | KN8: 4489.491159 | KO8: 5275.351858 | KP8: 5550.04054 | KQ8: 5594.531372 | KR8: 5942.267502 | KS8: 6160.405986 | KT8: 6303.16719 | KU8: 6224.361576 | KV8: 5691.295775 | KW8: 4757.500818 | KX8: 4153.852804 | KY8: 3735.542673 | KZ8: 3714.159255 | LA8: 3935.6 | LB8: 3836.8 | LC8: 5689.333 | LD8: 6077.8 | LE8: 6134.118 | LF8: 6840.7 | LG8: 7105.4 | LH8: 6556.7 | LI8: 5609.49 | LJ8: 4544.953286 | LK8: 3764.8 | LL8: 3148.461889 | LM8: 3471.7 | LN8: 3428.936438 | LO8: 2989.757404 | LP8: 4613.1 | LQ8: 4750.7 | LR8: 4708.544306 | LS8: 4931.128714 | LT8: 4572.495948 | LU8: 4016.7 | LV8: 3324.6 | LW8: 2575.59822 | LX8: 2320.487376 | LY8: 2221.825186 | LZ8: 2616.62727 | MA8: 3213.446212 | MB8: 3478.152415 | MC8: 5968.301475 | MD8: 7075.914676 | ME8: 7092.143047 | MF8: 6922.726697 | MG8: 5725.784216 | MH8: 5172.242383 | MI8: 4492.194368 | MJ8: 4097.93405 | MK8: 4573.98227 | ML8: 4716.523323 | MM8: 4712.732544 | MN8: 5316.971698 | MO8: 5389.759018 | MP8: 5907.567937 | MQ8: 6224.415753 | MR8: 5831.917609 | MS8: 4938.960278 | MT8: 4245.506425 | MU8: 3642.416349 | MV8: 3545.130921 | MW8: 4782.332203 | MX8: 5895.323831 | MY8: 6049.639869 | MZ8: 5977.327798 | NA8: 6397.613539 | NB8: 7238.649603 | NC8: - | ND8: - | NE8: - | NF8: - | NG8: - | NH8: - | NI8: - | NJ8: -
B9: Reservas embalses hiperanuales (GWh) | C9: 4805.245 | D9: 5001.554 | E9: 4590.072 | F9: 4528.907 | G9: 4298.34 | H9: 3971.987 | I9: 3640.893 | J9: 3371.552 | K9: 3169.561 | L9: 3035.434 | M9: 2999.043 | N9: 2938.757 | O9: 3109.139 | P9: 3129.344 | Q9: 3976.857 | R9: 4051.773 | S9: 3878.53 | T9: 3686.838 | U9: 3320.711 | V9: 3072.244 | W9: 2944.803 | X9: 2844.475 | Y9: 2929.547 | Z9: 2821.068 | AA9: 2725.516 | AB9: 2738.1 | AC9: 2739.981 | AD9: 3144.279 | AE9: 3119.163 | AF9: 3296.298 | AG9: 3233.922 | AH9: 3098.824 | AI9: 3094.008 | AJ9: 3269.847 | AK9: 3441.3 | AL9: 3692.512 | AM9: 3495.226 | AN9: 3234.287 | AO9: 3110.295 | AP9: 3200.645 | AQ9: 3362.978 | AR9: 3388.844 | AS9: 3129.505 | AT9: 2875.14 | AU9: 2866.984 | AV9: 3123.863 | AW9: 3236.431 | AX9: 3282.608 | AY9: 3834.932 | AZ9: 3884.613 | BA9: 4012.953 | BB9: 3739.014 | BC9: 3848.612 | BD9: 3634.128 | BE9: 3279.885 | BF9: 3062.721 | BG9: 2869.126 | BH9: 2704.862 | BI9: 2729.11 | BJ9: 2613.719 | BK9: 2806.46 | BL9: 3077.926 | BM9: 3087.31 | BN9: 2914.644 | BO9: 2863.047 | BP9: 2704.508 | BQ9: 2368.369 | BR9: 2240.588 | BS9: 2189.886 | BT9: 2100.164 | BU9: 2141.689 | BV9: 2644.991 | BW9: 4823.794 | BX9: 5257.955 | BY9: 5321.876 | BZ9: 5456.139 | CA9: 5668.5 | CB9: 5406.848 | CC9: 4995.364 | CD9: 4725.113 | CE9: 4287.707 | CF9: 3922.73 | CG9: 3858.013 | CH9: 4868.099 | CI9: 6349.738 | CJ9: 6686.362 | CK9: 6698.054 | CL9: 6351.52 | CM9: 6137.609 | CN9: 6102.557 | CO9: 5850.398 | CP9: 5607.807 | CQ9: 5436.361 | CR9: 5330.631 | CS9: 6102.601 | CT9: 7387.141 | CU9: 7388.578 | CV9: 7540.124 | CW9: 7483.139 | CX9: 7666.401 | CY9: 7753.412 | CZ9: 7449.236 | DA9: 6701.121 | DB9: 6186.419 | DC9: 5931.949 | DD9: 5658.149 | DE9: 5322.482 | DF9: 5343.06 | DG9: 5529.376 | DH9: 5653.11 | DI9: 5620.217 | DJ9: 5390.846 | DK9: 5080.863 | DL9: 4550.031 | DM9: 3970.518 | DN9: 3577.008 | DO9: 3233.983 | DP9: 3554.265 | DQ9: 3596.383 | DR9: 3725.698 | DS9: 3723.285 | DT9: 3599.816 | DU9: 3425.896 | DV9: 3999.66 | DW9: 4736.31 | DX9: 4631.114 | DY9: 4374.569 | DZ9: 3911.592 | EA9: 3427.003 | EB9: 3136.443 | EC9: 3406.322 | ED9: 4497.157 | EE9: 5888.675 | EF9: 5971.034 | EG9: 6724.945 | EH9: 6664.909 | EI9: 6531.646 | EJ9: 6140.386 | EK9: 5825.241 | EL9: 5351.425 | EM9: 5048.018 | EN9: 4827.853 | EO9: 4386.537 | EP9: 3897.584 | EQ9: 3754.203 | ER9: 3676.364 | ES9: 3518.776 | ET9: 3453.453 | EU9: 3454.857 | EV9: 3228.454 | EW9: 3131.829 | EX9: 2972.516 | EY9: 2871.465 | EZ9: 3014.072 | FA9: 3512.099 | FB9: 4575.158 | FC9: 5677.88 | FD9: 5894.046 | FE9: 6238.459 | FF9: 6427.453 | FG9: 6306.067 | FH9: 6004.084 | FI9: 5655.124 | FJ9: 5345.312 | FK9: 5051.36 | FL9: 4850.282 | FM9: 5021.864 | FN9: 5235.985 | FO9: 5469.498 | FP9: 5400.779 | FQ9: 5362.295 | FR9: 5546.353 | FS9: 5617.466 | FT9: 5403.503 | FU9: 5041.944 | FV9: 4612.164 | FW9: 4254.257 | FX9: 4091.927 | FY9: 3813.124 | FZ9: 3864.052 | GA9: 3936.376 | GB9: 3767.608 | GC9: 3682.101 | GD9: 3548.084 | GE9: 3466.757 | GF9: 3245.216 | GG9: 3104.724 | GH9: 2837.54 | GI9: 2781.466 | GJ9: 2840.668 | GK9: 2982.529 | GL9: 3139.431 | GM9: 3222.844 | GN9: 3347.19 | GO9: 3802.703 | GP9: 4057.055 | GQ9: 4086.748 | GR9: 3989.805 | GS9: 3836.282 | GT9: 3721.288 | GU9: 3664.899 | GV9: 3995.687 | GW9: 4400.696 | GX9: 4493.663 | GY9: 4408.944 | GZ9: 4763.753 | HA9: 4736.694 | HB9: 4842.702 | HC9: 4955.849 | HD9: 4965.388 | HE9: 4540.182 | HF9: 4167.946 | HG9: 3964.459 | HH9: 3773.006 | HI9: 3385.732 | HJ9: 3027.664 | HK9: 2943.124 | HL9: 2876.889 | HM9: 2859.527 | HN9: 3180.453 | HO9: 3353.231 | HP9: 3423.634 | HQ9: 3276.08 | HR9: 3061.353 | HS9: 2974.004 | HT9: 2923.121 | HU9: 2852.961 | HV9: 3096.022 | HW9: 3498.037 | HX9: 4124.414 | HY9: 4455.683 | HZ9: 4592.045 | IA9: 4553.248 | IB9: 4374.984 | IC9: 4052.757 | ID9: 3737.502 | IE9: 3716.228 | IF9: 3547.85 | IG9: 3559.984 | IH9: 4047.835 | II9: 5421.466 | IJ9: 6445.772 | IK9: 7179.813 | IL9: 7370.336 | IM9: 7416.072 | IN9: 7354.562 | IO9: 6948.639 | IP9: 6587.41 | IQ9: 6524.678 | IR9: 6400.182 | IS9: 6343.049 | IT9: 6741.147 | IU9: 6884.238 | IV9: 7089.217 | IW9: 7262.484 | IX9: 7442.256 | IY9: 7447.499 | IZ9: 7273.041 | JA9: 7012.864 | JB9: 6688.771 | JC9: 6526.149 | JD9: 6351.507 | JE9: 6153.159 | JF9: 5856.245 | JG9: 5562.454 | JH9: 5326.533 | JI9: 5103.899 | JJ9: 5149.588 | JK9: 5114.18 | JL9: 4713.64 | JM9: 4314.287 | JN9: 3977.019 | JO9: 3838.319 | JP9: 3607.688 | JQ9: 3438.288 | JR9: 3407.177 | JS9: 4113.239 | JT9: 4584.158 | JU9: 6262.185 | JV9: 7305.148 | JW9: 7511.86 | JX9: 7432.207 | JY9: 7000.488 | JZ9: 6511.428 | KA9: 6231.381 | KB9: 6246.813 | KC9: 5959.98 | KD9: 6009.107 | KE9: 6780.682 | KF9: 7456.181 | KG9: 7463.096 | KH9: 7493.291 | KI9: 7318.65 | KJ9: 7042.664 | KK9: 6747.612 | KL9: 6397.263 | KM9: 6084.681 | KN9: 6116.299 | KO9: 6273.849 | KP9: 6275.663 | KQ9: 6293.382 | KR9: 6679.314 | KS9: 6757.668 | KT9: 6900.563 | KU9: 6662.753 | KV9: 6227.497 | KW9: 5691.385 | KX9: 5315.541 | KY9: 5019.009 | KZ9: 4909.11 | LA9: 4809 | LB9: 4807.4 | LC9: 5538.324 | LD9: 5988.4 | LE9: 6171.938 | LF9: 6338.8 | LG9: 6472.2 | LH9: 6194.3 | LI9: 5791.3 | LJ9: 5181.899478 | LK9: 4778.2 | LL9: 4491.080969 | LM9: 4266.2 | LN9: 3842.967768 | LO9: 3362.640845 | LP9: 3588.4 | LQ9: 3420.6 | LR9: 3293.934045 | LS9: 3137.221537 | LT9: 2932.177789 | LU9: 2852.1 | LV9: 2711.7 | LW9: 2559.911612 | LX9: 2387.550738 | LY9: 2182.044935 | LZ9: 2266.784716 | MA9: 2184.775828 | MB9: 2138.257912 | MC9: 3731.169668 | MD9: 4821.612977 | ME9: 5003.5802 | MF9: 4953.578161 | MG9: 4520.718692 | MH9: 4142.829136 | MI9: 3700.744204 | MJ9: 3530.70449 | MK9: 3434.997352 | ML9: 3455.696506 | MM9: 3358.428556 | MN9: 3549.48362 | MO9: 3602.388743 | MP9: 3633.500076 | MQ9: 3657.590652 | MR9: 3495.657039 | MS9: 3221.874635 | MT9: 3018.16446 | MU9: 2823.916392 | MV9: 2812.91191 | MW9: 3025.854849 | MX9: 3556.609095 | MY9: 4154.203972 | MZ9: 4316.393822 | NA9: 4524.849367 | NB9: 5244.315756 | NC9: - | ND9: - | NE9: - | NF9: - | NG9: - | NH9: - | NI9: - | NJ9: -
B10: Total reservas (GWh) | C10: =SUM(C8:C9) -> 9324.134 | D10: =SUM(D8:D9) -> 9414.432 | E10: 8457.072 | F10: 8644.38 | G10: 8535.542 | H10: 7945.022 | I10: 6967.498 | J10: 6242.617 | K10: 5632.217 | L10: 5568.007 | M10: 5540.861 | N10: 5474.859 | O10: 6278.699 | P10: 6411.485 | Q10: 8898.819 | R10: 8730.409 | S10: 8283.601 | T10: 7826.946 | U10: 6893.288 | V10: 6261.375 | W10: 5678.962 | X10: 5253.9 | Y10: 5477.17 | Z10: 5152.835 | AA10: 5016.352 | AB10: 5042.893 | AC10: 5138.356 | AD10: 6577.079 | AE10: 6848.217 | AF10: 7283.135 | AG10: 6734.801 | AH10: 6248.28 | AI10: 5947.846 | AJ10: 6235.594 | AK10: 6433.167 | AL10: 7050.822 | AM10: 6539.829 | AN10: 6050.445 | AO10: 6519.266 | AP10: 7047.207 | AQ10: 8361.749 | AR10: 8533.485 | AS10: 7516.684 | AT10: 6740.379 | AU10: 6480.454 | AV10: 7908.895 | AW10: 7346.246 | AX10: 7355.852 | AY10: 8783.09 | AZ10: 8828.231 | BA10: 8986.353 | BB10: 8401.931 | BC10: 9630.979 | BD10: 9018.416 | BE10: 7893.985 | BF10: 6968.641 | BG10: 6370.574 | BH10: 6280.879 | BI10: 6414.395 | BJ10: 6227.088 | BK10: 7237.035 | BL10: 8037.735 | BM10: 7888.135 | BN10: 7197.722 | BO10: 7051.926 | BP10: =SUM(BP8:BP9) -> 6456.652 | BQ10: 5569.38 | BR10: 4882.902 | BS10: 4650.019 | BT10: 4349.18 | BU10: 4957.39 | BV10: 7430.269 | BW10: 11158.379 | BX10: 11045.275 | BY10: 11207.152 | BZ10: 11520.44 | CA10: 11897.314 | CB10: 11214.441 | CC10: 10014.781 | CD10: 9262.632 | CE10: 8299.742 | CF10: 7612.776 | CG10: 7836.895 | CH10: 10191.032 | CI10: 11990.115 | CJ10: 12121.487 | CK10: 11660.475 | CL10: 10922.865 | CM10: 10926.679 | CN10: 11201.533 | CO10: 10558.274 | CP10: 9785.053 | CQ10: 9058.766 | CR10: 8711.834 | CS10: 11329.617 | CT10: 13873.023 | CU10: 13338.713 | CV10: 13096.002 | CW10: 12705.843 | CX10: 13802.603 | CY10: 14113.447 | CZ10: 13572.592 | DA10: 11882.232 | DB10: 10538.195 | DC10: 9750.839 | DD10: 9349.899 | DE10: 8711.773 | DF10: 8698.401 | DG10: 9280.301 | DH10: 9502.586 | DI10: 9943.99 | DJ10: 9892.568 | DK10: 10228.871 | DL10: 9223.331 | DM10: 7894.055 | DN10: 7017.868 | DO10: 6685.746 | DP10: 7927.578 | DQ10: 7669.596 | DR10: 7850.319 | DS10: 7352.064 | DT10: 7174.365 | DU10: 6761.2 | DV10: 9414.232 | DW10: 10933.619 | DX10: 10449.22 | DY10: 9423.742 | DZ10: 8124.837 | EA10: 6844.262 | EB10: =SUM(EB8:EB9) -> 6111.129 | EC10: 7547.165 | ED10: 10395.482 | EE10: 12453.174 | EF10: 12017.972 | EG10: 13504.289 | EH10: 12925.833 | EI10: 12930.399 | EJ10: 12064.741 | EK10: 11027.562 | EL10: 9642.763 | EM10: 8716.423 | EN10: 8336.038 | EO10: 7309.412 | EP10: 6478.654 | EQ10: 6617.367 | ER10: 7110.121 | ES10: 7689.483 | ET10: 7857.309 | EU10: 8023.162 | EV10: 7656.453 | EW10: 7018.161 | EX10: 6493.825 | EY10: 6285.257 | EZ10: 6729.019 | FA10: 8341.566 | FB10: 10715.462 | FC10: 11974.078 | FD10: 12207.75 | FE10: 12526.206 | FF10: 13061.733 | FG10: 12777.918 | FH10: 12083.316 | FI10: 10899.202 | FJ10: 9909.755 | FK10: 9162.328 | FL10: 9177.501 | FM10: 10232.05 | FN10: 10468.852 | FO10: 11006.377 | FP10: 10522.03 | FQ10: 10548.793 | FR10: 10865.82 | FS10: 11051.383 | FT10: 10421.577 | FU10: 9376.723 | FV10: 8321.5 | FW10: 7618.577 | FX10: 7465.77 | FY10: 7194.731 | FZ10: 7366.773 | GA10: 7700.558 | GB10: 7510.272 | GC10: 7594.282 | GD10: 8136.921 | GE10: 8216.713 | GF10: 7529.264 | GG10: 6649.533 | GH10: 5804.068 | GI10: 5368.076 | GJ10: 5630.366 | GK10: 6095.325 | GL10: 6648.541 | GM10: 6928.222 | GN10: =SUM(GN8:GN9) -> 7318.634 | GO10: 9021.394 | GP10: 9371.513 | GQ10: 8953.631 | GR10: 8401.534 | GS10: 7551.868251 | GT10: 7023.682626 | GU10: 6588.898816 | GV10: 7902.127646 | GW10: 10233.25094 | GX10: 9851.087894 | GY10: 9613.564499 | GZ10: 10807.86828 | HA10: 10392.28901 | HB10: 10909.04376 | HC10: 11464.44319 | HD10: 11371.13251 | HE10: 9654.917798 | HF10: 8335.417905 | HG10: 7490.235551 | HH10: 6688.2093 | HI10: 6095.049196 | HJ10: 5633.230013 | HK10: 5963.297469 | HL10: 6157.490482 | HM10: 6600.450747 | HN10: 8517.10154 | HO10: 9403.877235 | HP10: 9493.993419 | HQ10: 8419.155302 | HR10: 7328.68552 | HS10: 6585.138226 | HT10: 6224.345627 | HU10: 6445.267382 | HV10: 6911.862 | HW10: 8152.931325 | HX10: 9155.264829 | HY10: 9564.02449 | HZ10: 9766.157914 | IA10: 9885.850285 | IB10: 9426.432758 | IC10: 8443.765158 | ID10: 7478.814155 | IE10: 6995.367918 | IF10: 6605.261871 | IG10: 6941.722014 | IH10: 9136.754467 | II10: 11332.48874 | IJ10: 13099.20553 | IK10: 14148.59329 | IL10: 14208.11917 | IM10: 14345.43163 | IN10: 14378.03198 | IO10: 13090.86393 | IP10: 11741.66939 | IQ10: 10934.40503 | IR10: 10630.05477 | IS10: 11056.29359 | IT10: 12297.53409 | IU10: 12871.72667 | IV10: 13395.84569 | IW10: 13812.45895 | IX10: 13939.86893 | IY10: 13809.05004 | IZ10: 13265.3855 | JA10: 12287.25691 | JB10: 11225.52372 | JC10: 10496.61306 | JD10: 9880.281705 | JE10: 10187.55716 | JF10: 9690.681004 | JG10: 9257.983327 | JH10: 9173.557761 | JI10: 8822.052728 | JJ10: 9428.036831 | JK10: 10301.08569 | JL10: 9516.477273 | JM10: 8381.409194 | JN10: 7311.592384 | JO10: 6665.784439 | JP10: 6448.743835 | JQ10: 6546.291526 | JR10: 7079.449087 | JS10: 9031.693141 | JT10: 9716.251386 | JU10: 13173.11601 | JV10: 14420.56835 | JW10: 14538.51403 | JX10: 14177.55361 | JY10: 13055.51275 | JZ10: 11745.75702 | KA10: 10661.58162 | KB10: 10606.98399 | KC10: 10354.38425 | KD10: 10667.03007 | KE10: 13095.09911 | KF10: 14128.36596 | KG10: 13921.84905 | KH10: 14347.67304 | KI10: 14108.11102 | KJ10: 13566.25273 | KK10: 12458.29848 | KL10: 11182.84522 | KM10: 10347.82624 | KN10: 10605.79016 | KO10: 11549.20086 | KP10: 11825.70354 | KQ10: 11887.91337 | KR10: 12621.5815 | KS10: 12918.07399 | KT10: 13203.73019 | KU10: 12887.11458 | KV10: 11918.79277 | KW10: 10448.88582 | KX10: 9469.393804 | KY10: 8754.551673 | KZ10: 8623.269255 | LA10: 8744.6 | LB10: 8644.2 | LC10: 11227.657 | LD10: 12066.2 | LE10: 12306.056 | LF10: 13179.6 | LG10: 13577.5 | LH10: 12751 | LI10: 11400.7 | LJ10: 9726.852764 | LK10: 8543 | LL10: 7639.542858 | LM10: 7737.9 | LN10: 7271.904206 | LO10: 6352.398249 | LP10: 8201.5 | LQ10: 8171.3 | LR10: 8002.478351 | LS10: 8068.350251 | LT10: 7504.673737 | LU10: 6868.8 | LV10: 6036.3 | LW10: 5135.509832 | LX10: 4708.038114 | LY10: 4403.870121 | LZ10: 4883.411986 | MA10: 5398.22204 | MB10: 5616.410327 | MC10: 9699.471143 | MD10: 11897.52765 | ME10: 12095.72325 | MF10: 11876.30486 | MG10: 10246.50291 | MH10: 9315.071519 | MI10: 8192.938573 | MJ10: 7628.63854 | MK10: 8008.979622 | ML10: 8172.219829 | MM10: 8071.1611 | MN10: 8866.455318 | MO10: 8992.14776 | MP10: 9541.068013 | MQ10: 9882.006405 | MR10: 9327.574647 | MS10: 8160.834914 | MT10: 7263.670885 | MU10: 6466.332741 | MV10: 6358.042831 | MW10: 7808.187051 | MX10: 9451.932926 | MY10: 10203.84384 | MZ10: 10293.72162 | NA10: 10922.46291 | NB10: 12482.96536 | NC10: - | ND10: - | NE10: - | NF10: - | NG10: - | NH10: - | NI10: - | NJ10: -
B12: Reservas hidroeléctricas mensuales (%) | C12: 1990-01-01 | D12: 1990-02-01 | E12: 1990-03-01 | F12: 1990-04-01 | G12: 1990-05-01 | H12: 1990-06-01 | I12: 1990-07-01 | J12: 1990-08-01 | K12: 1990-09-01 | L12: 1990-10-01 | M12: 1990-11-01 | N12: 1990-12-01 | O12: 1991-01-01 | P12: 1991-02-01 | Q12: 1991-03-01 | R12: 1991-04-01 | S12: 1991-05-01 | T12: 1991-06-01 | U12: 1991-07-01 | V12: 1991-08-01 | W12: 1991-09-01 | X12: 1991-10-01 | Y12: 1991-11-01 | Z12: 1991-12-01 | AA12: 1992-01-01 | AB12: 1992-02-01 | AC12: 1992-03-01 | AD12: 1992-04-01 | AE12: 1992-05-01 | AF12: 1992-06-01 | AG12: 1992-07-01 | AH12: 1992-08-01 | AI12: 1992-09-01 | AJ12: 1992-10-01 | AK12: 1992-11-01 | AL12: 1992-12-01 | AM12: 1993-01-01 | AN12: 1993-02-01 | AO12: 1993-03-01 | AP12: 1993-04-01 | AQ12: 1993-05-01 | AR12: 1993-06-01 | AS12: 1993-07-01 | AT12: 1993-08-01 | AU12: 1993-09-01 | AV12: 1993-10-01 | AW12: 1993-11-01 | AX12: 1993-12-01 | AY12: 1994-01-01 | AZ12: 1994-02-01 | BA12: 1994-03-01 | BB12: 1994-04-01 | BC12: 1994-05-01 | BD12: 1994-06-01 | BE12: 1994-07-01 | BF12: 1994-08-01 | BG12: 1994-09-01 | BH12: 1994-10-01 | BI12: 1994-11-01 | BJ12: 1994-12-01 | BK12: 1995-01-01 | BL12: 1995-02-01 | BM12: 1995-03-01 | BN12: 1995-04-01 | BO12: 1995-05-01 | BP12: 1995-06-01 | BQ12: 1995-07-01 | BR12: 1995-08-01 | BS12: 1995-09-01 | BT12: 1995-10-01 | BU12: 1995-11-01 | BV12: 1995-12-01 | BW12: 1996-01-01 | BX12: 1996-02-01 | BY12: 1996-03-01 | BZ12: 1996-04-01 | CA12: 1996-05-01 | CB12: 1996-06-01 | CC12: 1996-07-01 | CD12: 1996-08-01 | CE12: 1996-09-01 | CF12: 1996-10-01 | CG12: 1996-11-01 | CH12: 1996-12-01 | CI12: 1997-01-01 | CJ12: 1997-02-01 | CK12: 1997-03-01 | CL12: 1997-04-01 | CM12: 1997-05-01 | CN12: 1997-06-01 | CO12: 1997-07-01 | CP12: 1997-08-01 | CQ12: 1997-09-01 | CR12: 1997-10-01 | CS12: 1997-11-01 | CT12: 1997-12-01 | CU12: 1998-01-01 | CV12: 1998-02-01 | CW12: 1998-03-01 | CX12: 1998-04-01 | CY12: 1998-05-01 | CZ12: 1998-06-01 | DA12: 1998-07-01 | DB12: 1998-08-01 | DC12: 1998-09-01 | DD12: 1998-10-01 | DE12: 1998-11-01 | DF12: 1998-12-01 | DG12: 1999-01-01 | DH12: 1999-02-01 | DI12: 1999-03-01 | DJ12: 1999-04-01 | DK12: 1999-05-01 | DL12: 1999-06-01 | DM12: 1999-07-01 | DN12: 1999-08-01 | DO12: 1999-09-01 | DP12: 1999-10-01 | DQ12: 1999-11-01 | DR12: 1999-12-01 | DS12: 2000-01-01 | DT12: 2000-02-01 | DU12: 2000-03-01 | DV12: 2000-04-01 | DW12: 2000-05-01 | DX12: 2000-06-01 | DY12: 2000-07-01 | DZ12: 2000-08-01 | EA12: 2000-09-01 | EB12: 2000-10-01 | EC12: 2000-11-01 | ED12: 2000-12-01 | EE12: 2001-01-01 | EF12: 2001-02-01 | EG12: 2001-03-01 | EH12: 2001-04-01 | EI12: 2001-05-01 | EJ12: 2001-06-01 | EK12: 2001-07-01 | EL12: 2001-08-01 | EM12: 2001-09-01 | EN12: 2001-10-01 | EO12: 2001-11-01 | EP12: 2001-12-01 | EQ12: 2002-01-01 | ER12: 2002-02-01 | ES12: 2002-03-01 | ET12: 2002-04-01 | EU12: 2002-05-01 | EV12: 2002-06-01 | EW12: 2002-07-01 | EX12: 2002-08-01 | EY12: 2002-09-01 | EZ12: 2002-10-01 | FA12: 2002-11-01 | FB12: 2002-12-01 | FC12: 2003-01-01 | FD12: 2003-02-01 | FE12: 2003-03-01 | FF12: 2003-04-01 | FG12: 2003-05-01 | FH12: 2003-06-01 | FI12: 2003-07-01 | FJ12: 2003-08-01 | FK12: 2003-09-01 | FL12: 2003-10-01 | FM12: 2003-11-01 | FN12: 2003-12-01 | FO12: 2004-01-01 | FP12: 2004-02-01 | FQ12: 2004-03-01 | FR12: 2004-04-01 | FS12: 2004-05-01 | FT12: 2004-06-01 | FU12: 2004-07-01 | FV12: 2004-08-01 | FW12: 2004-09-01 | FX12: 2004-10-01 | FY12: 2004-11-01 | FZ12: 2004-12-01 | GA12: 2005-01-01 | GB12: 2005-02-01 | GC12: 2005-03-01 | GD12: 2005-04-01 | GE12: 2005-05-01 | GF12: 2005-06-01 | GG12: 2005-07-01 | GH12: 2005-08-01 | GI12: 2005-09-01 | GJ12: 2005-10-01 | GK12: 2005-11-01 | GL12: 2005-12-01 | GM12: 2006-01-01 | GN12: 2006-02-01 | GO12: 2006-03-01 | GP12: 2006-04-01 | GQ12: 2006-05-01 | GR12: 2006-06-01 | GS12: 2006-07-01 | GT12: 2006-08-01 | GU12: 2006-09-01 | GV12: 2006-10-01 | GW12: 2006-11-01 | GX12: 2006-12-01 | GY12: 2007-01-01 | GZ12: 2007-02-01 | HA12: 2007-03-01 | HB12: 2007-04-01 | HC12: 2007-05-01 | HD12: 2007-06-01 | HE12: 2007-07-01 | HF12: 2007-08-01 | HG12: 2007-09-01 | HH12: 2007-10-01 | HI12: 2007-11-01 | HJ12: 2007-12-01 | HK12: 2008-01-01 | HL12: 2008-02-01 | HM12: 2008-03-01 | HN12: 2008-04-01 | HO12: 2008-05-01 | HP12: 2008-06-01 | HQ12: 2008-07-01 | HR12: 2008-08-01 | HS12: 2008-09-01 | HT12: 2008-10-01 | HU12: 2008-11-01 | HV12: 2008-12-01 | HW12: 2009-01-01 | HX12: 2009-02-01 | HY12: 2009-03-01 | HZ12: 2009-04-01 | IA12: 2009-05-01 | IB12: 2009-06-01 | IC12: 2009-07-01 | ID12: 2009-08-01 | IE12: 2009-09-01 | IF12: 2009-10-01 | IG12: 2009-11-01 | IH12: 2009-12-01 | II12: 2010-01-31 | IJ12: 2010-02-28 | IK12: 2010-03-31 | IL12: 2010-04-30 | IM12: 2010-05-31 | IN12: 2010-06-30 | IO12: 2010-07-31 | IP12: 2010-08-31 | IQ12: 2010-09-30 | IR12: 2010-10-31 | IS12: 2010-11-30 | IT12: 2010-12-31 | IU12: 2011-01-31 | IV12: 2011-02-28 | IW12: 2011-03-31 | IX12: 2011-04-30 | IY12: 2011-05-31 | IZ12: 2011-06-30 | JA12: 2011-07-31 | JB12: 2011-08-31 | JC12: 2011-09-30 | JD12: 2011-10-31 | JE12: 2011-11-30 | JF12: 2011-12-31 | JG12: 2012-01-31 | JH12: 2012-02-29 | JI12: 2012-03-31 | JJ12: 2012-04-30 | JK12: 2012-05-31 | JL12: 2012-06-30 | JM12: 2012-07-31 | JN12: 2012-08-31 | JO12: 2012-09-30 | JP12: 2012-10-31 | JQ12: 2012-11-30 | JR12: 2012-12-31 | JS12: 2013-01-31 | JT12: 2013-02-28 | JU12: 2013-03-31 | JV12: 2013-04-30 | JW12: 2013-05-31 | JX12: 2013-06-30 | JY12: 2013-07-31 | JZ12: 2013-08-31 | KA12: 2013-09-30 | KB12: 2013-10-31 | KC12: 2013-11-30 | KD12: 2013-12-31 | KE12: 2014-01-31 | KF12: 2014-02-28 | KG12: 2014-03-31 | KH12: 2014-04-30 | KI12: 2014-05-31 | KJ12: 2014-06-30 | KK12: 2014-07-31 | KL12: 2014-08-31 | KM12: 2014-09-30 | KN12: 2014-10-31 | KO12: 2014-11-30 | KP12: 2014-12-31 | KQ12: 2015-01-31 | KR12: 2015-02-28 | KS12: 2015-03-31 | KT12: 2015-04-30 | KU12: 2015-05-31 | KV12: 2015-06-30 | KW12: 2015-07-31 | KX12: 2015-08-31 | KY12: 2015-09-30 | KZ12: 2015-10-31 | LA12: 2015-11-30 | LB12: 2015-12-31 | LC12: 2016-01-31 | LD12: 2016-02-29 | LE12: 2016-03-28 | LF12: 2016-04-30 | LG12: 2016-05-28 | LH12: 2016-06-28 | LI12: 2016-07-28 | LJ12: 2016-08-28 | LK12: 2016-09-28 | LL12: 2016-10-28 | LM12: 2016-11-28 | LN12: 2016-12-28 | LO12: 2017-01-28 | LP12: 2017-02-28 | LQ12: 2017-03-28 | LR12: 2017-04-28 | LS12: 2017-05-28 | LT12: 2017-06-28 | LU12: 2017-07-28 | LV12: 2017-08-28 | LW12: 2017-09-28 | LX12: 2017-10-28 | LY12: 2017-11-28 | LZ12: 2017-12-28 | MA12: 2018-01-28 | MB12: 2018-02-28 | MC12: 2018-03-28 | MD12: 2018-04-28 | ME12: 2018-05-28 | MF12: 2018-06-28 | MG12: 2018-07-28 | MH12: 2018-08-28 | MI12: 2018-09-28 | MJ12: 2018-10-28 | MK12: 2018-11-28 | ML12: 2018-12-28 | MM12: 2019-01-28 | MN12: 2019-02-28 | MO12: 2019-03-28 | MP12: 2019-04-28 | MQ12: 2019-05-28 | MR12: 2019-06-28 | MS12: 2019-07-28 | MT12: 2019-08-28 | MU12: 2019-09-28 | MV12: 2019-10-28 | MW12: 2019-11-28 | MX12: 2019-12-28 | MY12: 2020-01-31 | MZ12: 2020-02-28 | NA12: 2020-03-31 | NB12: 2020-04-30 | NC12: 2020-05-31 | ND12: 2020-06-30 | NE12: 2020-07-31 | NF12: 2020-08-31 | NG12: 2020-09-30 | NH12: 2020-10-31 | NI12: 2020-11-30 | NJ12: 2020-12-31
B13: Llenado embalses anuales (%) | C13: 56.20544359 | D13: 54.88689045 | E13: 48.09732002 | F13: 51.18779982 | G13: 52.70185172 | H13: 49.41617167 | I13: 41.37594654 | J13: 35.7099902 | K13: 30.63024405 | L13: 31.49986399 | M13: 31.61485228 | N13: 31.5437573 | O13: 39.42263813 | P13: 40.82290821 | Q13: 61.21882116 | R13: 58.19235918 | S13: 54.78978785 | T13: 51.5326647 | U13: 44.46850484 | V13: 39.6956839 | W13: 34.03256605 | X13: 29.99054388 | Y13: 31.7107191 | Z13: 29.03114798 | AA13: 28.52154564 | AB13: 28.69531418 | AC13: 29.86043612 | AD13: 42.7393152 | AE13: 46.42775994 | AF13: 49.63723002 | AG13: 43.5869177 | AH13: 39.21160356 | AI13: 35.5310772 | AJ13: 36.92437539 | AK13: 36.57114841 | AL13: 41.05037203 | AM13: 37.215768 | AN13: 34.4233658 | AO13: 41.66962781 | AP13: 47.01853049 | AQ13: 61.10258113 | AR13: 62.88562611 | AS13: 53.62677362 | AT13: 47.24682919 | AU13: 44.16932559 | AV13: 58.48993803 | AW13: 50.236409 | AX13: 49.78938263 | AY13: 60.60985927 | AZ13: 60.55424893 | BA13: 60.91904788 | BB13: 57.11594965 | BC13: 70.82806372 | BD13: 65.95200435 | BE13: 56.51799148 | BF13: 47.84351299 | BG13: 42.88914593 | BH13: 43.80253968 | BI13: 45.14096058 | BJ13: 44.26006336 | BK13: 54.2699985 | BL13: 60.75257207 | BM13: 58.80518117 | BN13: 52.46331157 | BO13: 51.30947045 | BP13: 45.95991474 | BQ13: 39.20910089 | BR13: 32.3656358 | BS13: 30.13410544 | BT13: 27.54813877 | BU13: 34.48944867 | BV13: 58.61474637 | BW13: 77.59216771 | BX13: 70.88873289 | BY13: 72.0885934 | BZ13: 74.28146599 | CA13: 76.29658147 | CB13: 71.13705634 | CC13: 61.48270892 | CD13: 55.57995279 | CE13: 49.14331287 | CF13: 45.19927795 | CG13: 48.73722264 | CH13: 65.20046855 | CI13: 69.08883189 | CJ13: 66.57470545 | CK13: 60.78456639 | CL13: 55.99428659 | CM13: 58.66119448 | CN13: 62.45722505 | CO13: 57.66665127 | CP13: 51.16697814 | CQ13: 44.37074509 | CR13: 41.41626803 | CS13: 64.0255837 | CT13: 79.44540075 | CU13: 72.88304961 | CV13: 68.05380582 | CW13: 63.97276612 | CX13: 75.16217948 | CY13: 77.9039041 | CZ13: 75.00482916 | DA13: 63.46329454 | DB13: 53.30479159 | DC13: 46.77748477 | DD13: 45.2201502 | DE13: 41.51533774 | DF13: 41.09948507 | DG13: 45.94498324 | DH13: 47.15213189 | DI13: 52.96178357 | DJ13: 55.14147626 | DK13: 63.05781675 | DL13: 57.24313074 | DM13: 48.05930316 | DN13: 42.14700508 | DO13: 42.28055565 | DP13: 53.56859775 | DQ13: 49.89268061 | DR13: 50.52237587 | DS13: 44.44882005 | DT13: 43.78455818 | DU13: 40.85405237 | DV13: 66.32295229 | DW13: 75.91067754 | DX13: 71.26582981 | DY13: 61.84718939 | DZ13: 51.60792896 | EA13: 41.85791704 | EB13: 36.43685182 | EC13: 50.72107873 | ED13: 72.24843026 | EE13: 78.56078346 | EF13: 72.36686102 | EG13: 81.13194564 | EH13: 74.9277431 | EI13: 76.57721463 | EJ13: 70.89984633 | EK13: 62.25888885 | EL13: 51.35668013 | EM13: 43.90171601 | EN13: 41.9842797 | EO13: 34.97956965 | EP13: 30.88901093 | EQ13: 34.26497696 | ER13: 41.09356101 | ES13: 49.91302604 | ET13: 52.70324173 | EU13: 54.67128868 | EV13: 52.9921736 | EW13: 46.50976209 | EX13: 42.14134146 | EY13: 40.85462944 | EZ13: 44.4587084 | FA13: 57.79675055 | FB13: 73.48422064 | FC13: 75.34988545 | FD13: 75.55938889 | FE13: 75.24874793 | FF13: 79.39588908 | FG13: 77.45201652 | FH13: 72.75334017 | FI13: 62.75861665 | FJ13: 54.62507011 | FK13: 49.19809827 | FL13: 51.78608677 | FM13: 62.3530134 | FN13: 62.62444876 | FO13: 66.26271893 | FP13: 61.28868187 | FQ13: 62.06952675 | FR13: 63.66083613 | FS13: 65.03051898 | FT13: 60.0539089 | FU13: 51.87656124 | FV13: 44.39155864 | FW13: 40.26257221 | FX13: 40.37653892 | FY13: 40.46945476 | FZ13: 41.91888917 | GA13: 45.04792933 | GB13: 44.7904122 | GC13: 46.81911055 | GD13: 54.91700584 | GE13: 56.84520095 | GF13: 51.2694369 | GG13: 42.42257821 | GH13: 35.50198787 | GI13: 30.955311 | GJ13: 33.38577102 | GK13: 37.25245331 | GL13: 41.99534966 | GM13: 44.34419119 | GN13: 47.52834178 | GO13: 62.45479718 | GP13: 63.60089081 | GQ13: 58.24452734 | GR13: 52.79746202 | GS13: 44.32578416 | GT13: 39.39653705 | GU13: 34.88240508 | GV13: 46.60261752 | GW13: 69.5805598 | GX13: 63.91240667 | GY13: 62.08949794 | GZ13: 72.10440858 | HA13: 67.46948313 | HB13: 72.36956356 | HC13: 77.6454971 | HD13: 76.41853251 | HE13: 61.01720151 | HF13: 49.71663896 | HG13: 42.06141369 | HH13: 34.77746539 | HI13: 32.32130844 | HJ13: 31.08358921 | HK13: 36.02972674 | HL13: 39.13655164 | HM13: 44.62805258 | HN13: 63.66455125 | HO13: 72.18232088 | HP13: 72.41749301 | HQ13: 61.35528295 | HR13: 50.90794492 | HS13: 43.07970411 | HT13: 39.38257933 | HU13: 42.8550938 | HV13: 45.52178009 | HW13: 55.53143628 | HX13: 60.01648002 | HY13: 60.94091941 | HZ13: 61.72555197 | IA13: 63.6162807 | IB13: 60.26220688 | IC13: 52.38335668 | ID13: 44.63268616 | IE13: 39.11911564 | IF13: 36.47396925 | IG13: 40.3430789 | IH13: 60.70922074 | II13: 65.92062566 | IJ13: 74.20010384 | IK13: 77.71689891 | IL13: 76.25599905 | IM13: 77.27727376 | IN13: 78.3268067 | IO13: 68.49902769 | IP13: 57.4810855 | IQ13: 49.17794727 | IR13: 47.17218523 | IS13: 52.56282138 | IT13: 61.96567489 | IU13: 66.77338533 | IV13: 70.33248351 | IW13: 73.04631801 | IX13: 72.46236884 | IY13: 70.94498591 | IZ13: 66.82753828 | JA13: 58.82083289 | JB13: 50.59455715 | JC13: 44.27921982 | JD13: 39.35343284 | JE13: 44.99222265 | JF13: 42.76221419 | JG13: 41.21310578 | JH13: 42.90260592 | JI13: 41.46541654 | JJ13: 47.71391285 | JK13: 57.84516201 | JL13: 53.5619726 | JM13: 45.35716601 | JN13: 37.18767014 | JO13: 31.53232512 | JP13: 31.68388728 | JQ13: 34.66092858 | JR13: 40.95373749 | JS13: 54.85134952 | JT13: 57.23388691 | JU13: 77.07175498 | JV13: 79.35225123 | JW13: 78.36231564 | JX13: 75.22513256 | JY13: 67.52655807 | JZ13: 58.37403425 | KA13: 49.4062719 | KB13: 48.62529076 | KC13: 49.00706529 | KD13: 51.94586734 | KE13: 70.41934114 | KF13: 74.4092227 | KG13: 72.02899746 | KH13: 76.44111225 | KI13: 75.71710315 | KJ13: 72.75205491 | KK13: 63.68644524 | KL13: 53.36954157 | KM13: 47.54324482 | KN13: 50.06748902 | KO13: 58.8315272 | KP13: 61.89489721 | KQ13: 62.39106574 | KR13: 66.26907201 | KS13: 68.7017856 | KT13: 70.29388029 | KU13: 69.41502808 | KV13: 63.4701971 | KW13: 53.05637355 | KX13: 46.32439898 | KY13: 41.6593407 | KZ13: 41.42086957 | LA13: 43.89 | LB13: 42.788 | LC13: 63.45 | LD13: 67.78 | LE13: 68.41 | LF13: 76.288 | LG13: 79.24 | LH13: 73.121 | LI13: 62.558 | LJ13: 50.68601111 | LK13: 41.986 | LL13: 35.112 | LM13: 38.717 | LN13: 38.24002128 | LO13: 33.34222982 | LP13: 51.446 | LQ13: 52.98 | LR13: 52.51040307 | LS13: 54.99269828 | LT13: 50.99317107 | LU13: 44.795 | LV13: 37.076 | LW13: 28.72346354 | LX13: 25.87842856 | LY13: 24.77813279 | LZ13: 29.18102575 | MA13: 35.83684147 | MB13: 38.78888535 | MC13: 66.55940685 | MD13: 78.91167792 | ME13: 79.09265918 | MF13: 77.20330225 | MG13: 63.85481745 | MH13: 57.68163464 | MI13: 50.09763563 | MJ13: 45.70078452 | MK13: 51.00974676 | ML13: 52.59938629 | MM13: 52.55711094 | MN13: 59.29567799 | MO13: 60.10741327 | MP13: 65.88209719 | MQ13: 69.41563228 | MR13: 65.0384332 | MS13: 55.08 | MT13: 47.34653412 | MU13: 40.62078176 | MV13: 39.53583985 | MW13: 53.33329693 | MX13: 65.75 | MY13: 67.466505 | MZ13: 66.66006978 | NA13: 71.35 | NB13: 80.72652261 | NC13: - | ND13: - | NE13: - | NF13: - | NG13: - | NH13: - | NI13: - | NJ13: -
B14: Llenado embalses hiperanuales (%) | C14: 49.01681165 | D14: 51.01929879 | E14: 46.82189872 | F14: 46.19797355 | G14: 43.8460312 | H14: 40.51700562 | I14: 37.13961857 | J14: 34.39215469 | K14: 32.33170724 | L14: 30.36873782 | M14: 30.00465521 | N14: 29.40150926 | O14: 31.10613742 | P14: 31.30828326 | Q14: 39.78743322 | R14: 40.53694857 | S14: 38.80369683 | T14: 36.88586759 | U14: 33.22286096 | V14: 30.73701242 | W14: 29.46199793 | X14: 28.45824205 | Y14: 29.30936557 | Z14: 28.22406103 | AA14: 27.2680878 | AB14: 27.39398749 | AC14: 27.41280641 | AD14: 31.4577041 | AE14: 31.20642497 | AF14: 32.97861516 | AG14: 32.3545593 | AH14: 31.00293849 | AI14: 30.95475565 | AJ14: 32.7139797 | AK14: 34.29208952 | AL14: 36.79538316 | AM14: 34.82945483 | AN14: 31.59637715 | AO14: 30.38507525 | AP14: 31.26772193 | AQ14: 32.8535845 | AR14: 33.10627447 | AS14: 30.57274147 | AT14: 28.08780044 | AU14: 28.00812289 | AV14: 30.51762367 | AW14: 31.6173223 | AX14: 32.06843438 | AY14: 37.46419468 | AZ14: 37.94953801 | BA14: 39.20331637 | BB14: 36.52715313 | BC14: 37.59783726 | BD14: 35.50250145 | BE14: 32.04183286 | BF14: 29.92031562 | BG14: 28.0290485 | BH14: 26.42432162 | BI14: 26.66120504 | BJ14: 25.53392797 | BK14: 27.41685219 | BL14: 30.06885621 | BM14: 30.16053033 | BN14: 28.47372268 | BO14: 27.96966157 | BP14: 26.42086333 | BQ14: 23.13705622 | BR14: 21.88873884 | BS14: 21.39342117 | BT14: 20.51690955 | BU14: 20.92257533 | BV14: 25.83943021 | BW14: 47.1245794 | BX14: 51.36598244 | BY14: 51.99043909 | BZ14: 53.30208038 | CA14: 55.37667619 | CB14: 52.82054704 | CC14: 48.80068001 | CD14: 46.16054557 | CE14: 41.8874415 | CF14: 38.32191038 | CG14: 37.68967745 | CH14: 47.55740354 | CI14: 62.03182237 | CJ14: 65.32036753 | CK14: 65.43458895 | CL14: 62.04923107 | CM14: 59.95949301 | CN14: 59.61706323 | CO14: 57.15367304 | CP14: 54.78375449 | CQ14: 53.10886526 | CR14: 52.07596838 | CS14: 59.61749307 | CT14: 72.16641353 | CU14: 72.18045186 | CV14: 73.66093414 | CW14: 73.10423662 | CX14: 74.89455865 | CY14: 75.74458599 | CZ14: 72.77303163 | DA14: 65.46455106 | DB14: 60.43632737 | DC14: 57.95036058 | DD14: 55.27555526 | DE14: 55.76631984 | DF14: 55.98192589 | DG14: 57.93405229 | DH14: 59.23047562 | DI14: 58.88583912 | DJ14: 56.48260384 | DK14: 53.2347561 | DL14: 47.67296235 | DM14: 41.6011133 | DN14: 37.47811119 | DO14: 33.8840658 | DP14: 37.23982134 | DQ14: 37.6811128 | DR14: 39.03601107 | DS14: 39.01072886 | DT14: 37.71708207 | DU14: 35.89483479 | DV14: 41.90644868 | DW14: 49.62470109 | DX14: 48.52250971 | DY14: 45.83455876 | DZ14: 40.98371597 | EA14: 35.90643339 | EB14: 32.86209018 | EC14: 35.68974815 | ED14: 47.11897487 | EE14: 61.69860856 | EF14: 62.56152521 | EG14: 70.46062979 | EH14: 69.83160243 | EI14: 68.43533898 | EJ14: 64.33591125 | EK14: 61.03397865 | EL14: 56.0695702 | EM14: 52.89062252 | EN14: 50.58384312 | EO14: 45.95995352 | EP14: 40.83694711 | EQ14: 39.33467229 | ER14: 38.51911395 | ES14: 36.86798525 | ET14: 36.18356333 | EU14: 36.19827375 | EV14: 33.82613569 | EW14: 32.81374699 | EX14: 31.14454459 | EY14: 30.08578246 | EZ14: 31.57994769 | FA14: 36.79802696 | FB14: 47.93623057 | FC14: 59.49000336 | FD14: 61.75488322 | FE14: 65.36347138 | FF14: 67.34365654 | FG14: 66.07183439 | FH14: 62.90780667 | FI14: 59.25157731 | FJ14: 56.00552122 | FK14: 52.92563833 | FL14: 50.81884303 | FM14: 52.61659391 | FN14: 54.86004728 | FO14: 57.30668038 | FP14: 56.58667687 | FQ14: 56.18346065 | FR14: 58.11192886 | FS14: 58.85701551 | FT14: 56.61521759 | FU14: 52.82698217 | FV14: 48.32396103 | FW14: 44.57398945 | FX14: 42.87317643 | FY14: 39.95201723 | FZ14: 40.48561549 | GA14: 41.2433904 | GB14: 39.47512321 | GC14: 38.57922338 | GD14: 37.1750599 | GE14: 36.32295603 | GF14: 34.00175959 | GG14: 32.52975427 | GH14: 29.73033318 | GI14: 29.14281769 | GJ14: 29.76310681 | GK14: 31.24945582 | GL14: 32.89339696 | GM14: 33.7673569 | GN14: 35.07019246 | GO14: 39.84283117 | GP14: 42.50780495 | GQ14: 42.81891344 | GR14: 41.80319289 | GS14: 40.19465524 | GT14: 38.98980529 | GU14: 38.39898938 | GV14: 41.86482156 | GW14: 46.10830448 | GX14: 47.08236648 | GY14: 46.19472292 | GZ14: 49.9122352 | HA14: 49.62872445 | HB14: 50.73942356 | HC14: 51.92492157 | HD14: 52.02486647 | HE14: 47.56976943 | HF14: 43.66966571 | HG14: 41.53763011 | HH14: 39.53168077 | HI14: 35.47401637 | HJ14: 31.72235791 | HK14: 30.83658983 | HL14: 30.14261243 | HM14: 29.96070203 | HN14: 33.32320508 | HO14: 35.13348705 | HP14: 35.87113468 | HQ14: 34.32513724 | HR14: 32.0753345 | HS14: 31.16013511 | HT14: 30.62700834 | HU14: 29.89190675 | HV14: 32.43857905 | HW14: 36.65069232 | HX14: 43.21355906 | HY14: 46.68443092 | HZ14: 48.11316415 | IA14: 47.70666848 | IB14: 45.83890693 | IC14: 42.46277265 | ID14: 39.15968751 | IE14: 38.93678912 | IF14: 37.17260816 | IG14: 37.29974218 | IH14: 42.41120238 | II14: 56.64358212 | IJ14: 67.34555111 | IK14: 75.01482574 | IL14: 77.00541375 | IM14: 77.48326436 | IN14: 76.84060669 | IO14: 72.5995153 | IP14: 68.82538768 | IQ14: 68.16996253 | IR14: 66.8692259 | IS14: 66.27229921 | IT14: 70.43163485 | IU14: 71.9266524 | IV14: 74.06827697 | IW14: 75.87857395 | IX14: 77.7568353 | IY14: 77.81161427 | IZ14: 75.9888737 | JA14: 73.27053934 | JB14: 69.88440938 | JC14: 68.18533157 | JD14: 66.36066856 | JE14: 64.2883248 | JF14: 61.18616156 | JG14: 58.11662748 | JH14: 55.65172029 | JI14: 53.32563593 | JJ14: 53.80299549 | JK14: 53.43305202 | JL14: 49.24820231 | JM14: 45.07575441 | JN14: 41.55197179 | JO14: 40.1028315 | JP14: 37.69319433 | JQ14: 35.92329984 | JR14: 35.5982515 | JS14: 42.975201 | JT14: 47.89537186 | JU14: 65.42743056 | JV14: 76.32432826 | JW14: 78.48405925 | JX14: 77.65184316 | JY14: 73.14123465 | JZ14: 68.03152627 | KA14: 65.10558977 | KB14: 65.26682361 | KC14: 62.26998685 | KD14: 62.7832667 | KE14: 70.8446973 | KF14: 77.90232397 | KG14: 77.97457203 | KH14: 78.29004997 | KI14: 76.46539741 | KJ14: 73.58189032 | KK14: 70.49918129 | KL14: 66.83872813 | KM14: 63.57286532 | KN14: 63.9032108 | KO14: 65.54929626 | KP14: 65.56824897 | KQ14: 65.75337743 | KR14: 69.78560246 | KS14: 70.60424658 | KT14: 72.09721631 | KU14: 69.61257281 | KV14: 65.06500967 | KW14: 59.46370107 | KX14: 55.53687566 | KY14: 52.43870356 | KZ14: 51.29047667 | LA14: 50.244 | LB14: 50.228 | LC14: 57.86 | LD14: 62.567 | LE14: 64.48 | LF14: 66.228 | LG14: 67.622 | LH14: 64.718 | LI14: 60.508 | LJ14: 54.14058644 | LK14: 49.923 | LL14: 46.923 | LM14: 44.573 | LN14: 40.15140192 | LO14: 35.13293689 | LP14: 37.492 | LQ14: 35.738 | LR14: 34.41508691 | LS14: 32.77775158 | LT14: 30.63545052 | LU14: 29.799 | LV14: 28.332 | LW14: 26.74600627 | LX14: 24.9451765 | LY14: 22.79804788 | LZ14: 23.68341076 | MA14: 22.8265803 | MB14: 22.34056021 | MC14: 38.98333319 | MD14: 50.37630608 | ME14: 52.27750316 | MF14: 51.75508088 | MG14: 47.23255674 | MH14: 43.28435931 | MI14: 38.66544736 | MJ14: 36.88886912 | MK14: 35.88891908 | ML14: 36.10518424 | MM14: 35.08892682 | MN14: 37.08507384 | MO14: 37.63782758 | MP14: 37.9628794 | MQ14: 38.21457821 | MR14: 36.52269267 | MS14: 33.66 | MT14: 31.53384093 | MU14: 29.50433333 | MV14: 29.38935829 | MW14: 31.61419026 | MX14: 37.15952094 | MY14: 43.40320383 | MZ14: 45.09776653 | NA14: 47.27571411 | NB14: 54.79271293 | NC14: - | ND14: - | NE14: - | NF14: - | NG14: - | NH14: - | NI14: - | NJ14: -
B15: Llenado total reservas (%) | C15: 52.25592842 | D15: 52.76199213 | E15: 47.39658922 | F15: 48.44633319 | G15: 47.8363644 | H15: 44.52686983 | I15: 39.04846034 | J15: 34.98595656 | K15: 31.56504705 | L15: 30.87298466 | M15: 30.72246796 | N15: 30.35650601 | O15: 34.81356578 | P15: 35.54982565 | Q15: 49.34137161 | R15: 48.40758698 | S15: 45.93016615 | T15: 43.41258917 | U15: 38.2340034 | V15: 34.72906297 | W15: 31.49867704 | X15: 29.14104713 | Y15: 30.37942654 | Z15: 28.58365533 | AA15: 27.82656083 | AB15: 27.97378829 | AC15: 28.50333784 | AD15: 36.48417991 | AE15: 37.98822868 | AF15: 40.40079307 | AG15: 37.35909077 | AH15: 34.66027573 | AI15: 32.99371705 | AJ15: 34.58990433 | AK15: 35.31562112 | AL15: 38.70631034 | AM15: 35.90115462 | AN15: 32.85212938 | AO15: 35.39768894 | AP15: 38.26425265 | AQ15: 45.40182746 | AR15: 46.33430322 | AS15: 40.8133741 | AT15: 36.59826723 | AU15: 35.18695125 | AV15: 42.94296399 | AW15: 39.8879461 | AX15: 39.94010384 | AY15: 47.73364518 | AZ15: 47.97897393 | BA15: 48.83832291 | BB15: 45.6621523 | BC15: 52.34168549 | BD15: 49.01257638 | BE15: 42.90160742 | BF15: 37.87262079 | BG15: 34.6222934 | BH15: 34.13482608 | BI15: 34.86044832 | BJ15: 33.842487 | BK15: 39.33126734 | BL15: 43.68284859 | BM15: 42.8698143 | BN15: 39.11761215 | BO15: 38.32525154 | BP15: 35.09010333 | BQ15: 30.2680274 | BR15: 26.53721088 | BS15: 25.27155671 | BT15: 23.63658063 | BU15: 26.94203239 | BV15: 40.38144025 | BW15: 60.6426786 | BX15: 60.0279899 | BY15: 60.90774626 | BZ15: 62.61037919 | CA15: 64.65858429 | CB15: 60.94735994 | CC15: 54.42754234 | CD15: 50.33982225 | CE15: 45.10678358 | CF15: 41.37331491 | CG15: 42.59133918 | CH15: 55.38541738 | CI15: 65.16293185 | CJ15: 65.87690204 | CK15: 63.37143037 | CL15: 59.36272568 | CM15: 59.38345371 | CN15: 60.87720856 | CO15: 57.38127526 | CP15: 53.17903472 | CQ15: 49.23186738 | CR15: 47.34638869 | CS15: 61.57330939 | CT15: 75.39601183 | CU15: 72.49218596 | CV15: 71.17311935 | CW15: 69.05271397 | CX15: 75.01329876 | CY15: 76.70264923 | CZ15: 73.76325311 | DA15: 64.57661783 | DB15: 57.27215149 | DC15: 52.99309117 | DD15: 50.81409406 | DE15: 49.19624278 | DF15: 49.12072978 | DG15: 52.40677656 | DH15: 53.66204192 | DI15: 56.15469391 | DJ15: 55.8643088 | DK15: 57.76344506 | DL15: 52.08506135 | DM15: 44.57850845 | DN15: 39.6305939 | DO15: 37.75506816 | DP15: 44.76781614 | DQ15: 43.3109663 | DR15: 44.33152694 | DS15: 41.51783173 | DT15: 40.51434792 | DU15: 38.18116435 | DV15: 53.16309815 | DW15: 61.74322664 | DX15: 59.00777764 | DY15: 53.21680206 | DZ15: 45.88175721 | EA15: 38.65022367 | EB15: 34.51014919 | EC15: 42.61958635 | ED15: 58.70431384 | EE15: 69.56999606 | EF15: 67.13872822 | EG15: 75.44207866 | EH15: 72.21051845 | EI15: 72.23602653 | EJ15: 67.40000451 | EK15: 61.60577575 | EL15: 53.86955839 | EM15: 48.69453472 | EN15: 46.56950355 | EO15: 40.83422941 | EP15: 36.1931772 | EQ15: 36.96810115 | ER15: 39.72088481 | ES15: 42.95750642 | ET15: 43.89507094 | EU15: 44.82161325 | EV15: 42.77298342 | EW15: 39.20714776 | EX15: 36.2779304 | EY15: 35.11275958 | EZ15: 37.59184809 | FA15: 46.60038587 | FB15: 59.8622206 | FC15: 66.89351319 | FD15: 68.19892819 | FE15: 69.97799132 | FF15: 72.9697275 | FG15: 71.38418727 | FH15: 67.50377426 | FI15: 60.88868911 | FJ15: 55.36111647 | FK15: 51.18559516 | FL15: 51.27035954 | FM15: 57.16162628 | FN15: 58.48452711 | FO15: 61.48742517 | FP15: 58.78160745 | FQ15: 58.93111968 | FR15: 60.70219966 | FS15: 61.73885242 | FT15: 58.22042403 | FU15: 52.38331867 | FV15: 46.48828662 | FW15: 42.56138811 | FX15: 41.70772764 | FY15: 40.19356088 | FZ15: 41.1546782 | GA15: 43.01937721 | GB15: 41.95633928 | GC15: 42.42566343 | GD15: 45.457131 | GE15: 45.90289118 | GF15: 42.0624386 | GG15: 37.14779739 | GH15: 32.42458412 | GI15: 29.98890292 | GJ15: 31.45419316 | GK15: 34.05169929 | GL15: 37.14225555 | GM15: 38.70470109 | GN15: 40.88574837 | GO15: 50.39826353 | GP15: 52.35421287 | GQ15: 50.01970368 | GR15: 46.93539874 | GS15: 42.12635276 | GT15: 39.17999125 | GU15: 36.75465019 | GV15: 44.0801939 | GW15: 57.08382676 | GX15: 54.95201849 | GY15: 53.62704909 | GZ15: 60.28919686 | HA15: 57.97098393 | HB15: 60.85358091 | HC15: 63.95174839 | HD15: 63.43123631 | HE15: 53.85772891 | HF15: 46.49720353 | HG15: 41.78254898 | HH15: 37.30863079 | HI15: 33.99982415 | HJ15: 31.42367251 | HK15: 33.26487757 | HL15: 34.34813844 | HM15: 36.81908997 | HN15: 47.51068372 | HO15: 52.45735712 | HP15: 52.96004944 | HQ15: 46.96431326 | HR15: 40.88137945 | HS15: 36.73367261 | HT15: 34.72107443 | HU15: 35.95343541 | HV15: 38.55622572 | HW15: 45.47924429 | HX15: 51.07053023 | HY15: 53.35070159 | HZ15: 54.47825621 | IA15: 55.14593245 | IB15: 52.58317789 | IC15: 47.10159366 | ID15: 41.71883736 | IE15: 39.02204419 | IF15: 36.84592771 | IG15: 38.72279291 | IH15: 50.96727445 | II15: 61.13089511 | IJ15: 70.66110346 | IK15: 76.32182058 | IL15: 76.64292129 | IM15: 77.38362655 | IN15: 77.55948276 | IO15: 70.61610633 | IP15: 63.33814012 | IQ15: 58.98351034 | IR15: 57.34175239 | IS15: 59.64101439 | IT15: 66.3366436 | IU15: 69.43401321 | IV15: 72.26127084 | IW15: 74.50860961 | IX15: 75.19589786 | IY15: 74.49022092 | IZ15: 71.55752881 | JA15: 66.28120537 | JB15: 60.55389323 | JC15: 56.62192718 | JD15: 53.29724816 | JE15: 54.95478555 | JF15: 52.27448424 | JG15: 49.94038121 | JH15: 49.484964 | JI15: 47.58883882 | JJ15: 50.8577016 | JK15: 55.56719297 | JL15: 51.33477627 | JM15: 45.21187341 | JN15: 39.44095577 | JO15: 35.95727106 | JP15: 34.78648795 | JQ15: 35.3126899 | JR15: 38.18870414 | JS15: 48.71970304 | JT15: 52.41241867 | JU15: 71.05979911 | JV15: 77.7889369 | JW15: 78.42517177 | JX15: 76.4780414 | JY15: 70.42541133 | JZ15: 63.36019006 | KA15: 57.51181782 | KB15: 57.21730155 | KC15: 55.85470164 | KD15: 57.54120841 | KE15: 70.6389522 | KF15: 76.21270824 | KG15: 75.0986931 | KH15: 77.3957174 | KI15: 76.10344691 | KJ15: 73.18049831 | KK15: 67.2038557 | KL15: 60.32367238 | KM15: 55.81932573 | KN15: 57.21086169 | KO15: 62.29990627 | KP15: 63.79144594 | KQ15: 64.12702472 | KR15: 68.08465402 | KS15: 69.68402476 | KT15: 71.22494131 | KU15: 69.51702028 | KV15: 64.29359762 | KW15: 56.36447189 | KX15: 51.0807937 | KY15: 47.22471757 | KZ15: 46.51654023 | LA15: 47.171 | LB15: 46.629 | LC15: 60.57 | LD15: 65.089 | LE15: 66.38 | LF15: 71.095 | LG15: 73.241 | LH15: 68.783 | LI15: 61.499 | LJ15: 52.46960573 | LK15: 46.083 | LL15: 41.21 | LM15: 41.741 | LN15: 39.22686565 | LO15: 34.26677052 | LP15: 44.241 | LQ15: 44.078 | LR15: 43.16780506 | LS15: 43.52313815 | LT15: 40.48249538 | LU15: 37.052 | LV15: 32.562 | LW15: 27.70250385 | LX15: 25.39659123 | LY15: 23.75581645 | LZ15: 26.3426113 | MA15: 29.1196535 | MB15: 30.29662756 | MC15: 52.32190093 | MD15: 64.17888708 | ME15: 65.24801446 | MF15: 64.06440486 | MG15: 55.27275685 | MH15: 50.2483323 | MI15: 44.19520549 | MJ15: 41.15119928 | MK15: 43.2028749 | ML15: 44.08344228 | MM15: 43.53830072 | MN15: 47.82835991 | MO15: 48.50638322 | MP15: 51.46742621 | MQ15: 53.30655172 | MR15: 50.31577799 | MS15: 44.02 | MT15: 39.18245262 | MU15: 34.88136787 | MV15: 34.29721912 | MW15: 42.11973863 | MX15: 50.98660441 | MY15: 55.04264085 | MZ15: 55.52746896 | NA15: 58.91909091 | NB15: 67.33691634 | NC15: - | ND15: - | NE15: - | NF15: - | NG15: - | NH15: - | NI15: - | NJ15: -
B17: Producible hidráulico anual peninsular | C17: =O2 -> 1990 | D17: =AB2 -> 1991 | E17: =AO2 -> 1992 | F17: =BB2 -> 1993 | G17: =BO2 -> 1994 | H17: =CB2 -> 1995 | I17: =CO2 -> 1996 | J17: =DB2 -> 1997 | K17: =DO2 -> 1998 | L17: =EB2 -> 1999 | M17: =EO2 -> 2000 | N17: =FB2 -> 2001 | O17: =FO2 -> 2002 | P17: =GB2 -> 2003 | Q17: =GO2 -> 2004 | R17: =HB2 -> 2005 | S17: =HO2 -> 2006 | T17: =IB2 -> 2007 | U17: =IO2 -> 2008 | V17: =JB2 -> 2009 | W17: =JO2 -> 2010 | X17: =KB2 -> 2011 | Y17: =KO2 -> 2012 | Z17: =LB2 -> 2013 | AA17: =LO2 -> 2014 | AB17: =MB2 -> 2015 | AC17: =MO2 -> 2016 | AD17: =NB2 -> 2017 | AE17: =NO2 -> 2018 | AF17: =OB2 -> 2019 | AG17: 2020 | AH17: 2021 | AI17: 2022 | AJ17: 2023 | AK17: 2024 | AL17: 2025 | AM17: 2026 | AN17: 2027 | AO17: 2028 | AP17: 2029
B18: Producible hidraulico (GWh) | C18: =O3 -> - | D18: =AB3 -> 24405.9099 | E18: =AO3 -> 18454.8545 | F18: =BB3 -> 21819.5197 | G18: =BO3 -> 23879.9017 | H18: =CB3 -> 21442.2688 | I18: =CO3 -> 39085.5204 | J18: =DB3 -> 35363.2537 | K18: =DO3 -> 26680.9132 | L18: =EB3 -> 20449.3 | M18: =EO3 -> 26602.9978 | N18: =FB3 -> 32187.7492 | O18: =FO3 -> 21562.6806 | P18: =GB3 -> 34761.7532 | Q18: =GO3 -> 23018.3801 | R18: =HB3 -> 13712.3821 | S18: =HO3 -> 24428.93179 | T18: =IB3 -> 18761.12022 | U18: =IO3 -> 19574.27059 | V18: =JB3 -> 22957.19517 | W18: =JO3 -> 38170.23491 | X18: =KB3 -> 27729.83335 | Y18: =KO3 -> 18011.19926 | Z18: =LB3 -> 40974.24125 | AA18: =LO3 -> 40271.07264 | AB18: =MB3 -> 25140.89526 | AC18: =MO3 -> 34666.88341 | AD18: =NB3 -> 15972.00793 | AE18: =NO3 -> 37402.77207 | AF18: =OB3 -> 25988.64636 | AG18: =OO3 -> 15561.89955 | AH18: - | AI18: - | AJ18: - | AK18: - | AL18: - | AM18: - | AN18: - | AO18: - | AP18: -
B19: Índice de producible | C19: =O4 -> - | D19: =AB4 -> 0.9811798599 | E19: =AO4 -> 0.7389551427 | F19: =BB4 -> 0.8772003736 | G19: =BO4 -> 0.9600329879 | H19: =CB4 -> 0.8620339247 | I19: =CO4 -> 1.565032458 | J19: =DB4 -> 1.421693043 | K19: =DO4 -> 1.072640798 | L19: =EB4 -> 0.8221140449 | M19: =EO4 -> 1.065216853 | N19: =FB4 -> 1.294029658 | O19: =FO4 -> 0.8668747863 | P19: =GB4 -> 1.397511188 | Q19: =GO4 -> 0.9216843379 | R19: =HB4 -> 0.5512727533 | S19: =HO4 -> 0.9821053988 | T19: =IB4 -> 0.7542449097 | U19: =IO4 -> 0.7837779439 | V19: =JB4 -> 0.9229378306 | W19: =JO4 -> 1.534540851 | X19: =KB4 -> 0.9516240967 | Y19: =KO4 -> 0.6140991859 | Z19: =LB4 -> 1.408356843 | AA19: =LO4 -> 1.345073817 | AB19: =MB4 -> 0.8206466345 | AC19: =MO4 -> 1.124366374 | AD19: =NB4 -> 0.5269172642 | AE19: =NO4 -> 1.28218313 | AF19: =OB4 -> 0.8801258005 | AG19: =OO4 -> 1.017443688 | AH19: - | AI19: - | AJ19: - | AK19: - | AL19: - | AM19: - | AN19: - | AO19: - | AP19: -
B20: Probabilidad de ser superado (%) | C20: =O5 -> - | D20: =AB5 -> 49.04787837 | E20: =AO5 -> 82.72782214 | F20: =BB5 -> 63.99525757 | G20: =BO5 -> 52.01261503 | H20: =CB5 -> 66.1967247 | I20: =CO5 -> 5.295016645 | J20: =DB5 -> 9.867146618 | K20: =DO5 -> 37.14761541 | L20: =EB5 -> 71.8912619 | M20: =EO5 -> 38.04687691 | N20: =FB5 -> 16.64863328 | O20: =FO5 -> 65.49545854 | P20: =GB5 -> 10.92313813 | Q20: =GO5 -> 57.51711284 | R20: =HB5 -> 97.40023019 | S20: =HO5 -> 48.91958491 | T20: =IB5 -> 80.88289519 | U20: =IO5 -> 77.11208825 | V20: =JB5 -> 57.33533717 | W20: =JO5 -> 6.059862434 | X20: =KB5 -> 55.05705373 | Y20: =KO5 -> 96.83762176 | Z20: =LB5 -> 8.643227626 | AA20: =LO5 -> 14.5638532 | AB20: =MB5 -> 78.99594181 | AC20: 37.33798007 | AD20: =NB5 -> 99.28242607 | AE20: =NO5 -> 17.17213976 | AF20: =OB5 -> 63.69545232 | AG20: =OO5 -> 49.01449964 | AH20: - | AI20: - | AJ20: - | AK20: - | AL20: - | AM20: - | AN20: - | AO20: - | AP20: -
B22: Reservas hidroeléctricas anuales peninsulares (GWh) | C22: 1990 | D22: 1991 | E22: 1992 | F22: 1993 | G22: 1994 | H22: 1995 | I22: 1996 | J22: 1997 | K22: 1998 | L22: 1999 | M22: 2000 | N22: 2001 | O22: 2002 | P22: 2003 | Q22: 2004 | R22: 2005 | S22: 2006 | T22: 2007 | U22: 2008 | V22: 2009 | W22: 2010 | X22: 2011 | Y22: 2012 | Z22: 2013 | AA22: 2014 | AB22: 2015 | AC22: 2016 | AD22: 2017 | AE22: 2018 | AF22: 2019 | AG22: 2020 | AH22: 2021 | AI22: 2022 | AJ22: 2023 | AK22: 2024 | AL22: 2025 | AM22: 2026 | AN22: 2027 | AO22: 2028 | AP22: 2029
B23: Reservas embalses anuales (GWh) | C23: =N8 -> 2536.102 | D23: =Z8 -> 2331.767 | E23: =AL8 -> 3358.31 | F23: =AX8 -> 4073.244 | G23: =BJ8 -> 3613.369 | H23: =BV8 -> 4785.278 | I23: =CH8 -> 5322.933 | J23: =CT8 -> 6485.882 | K23: =DF8 -> 3355.341 | L23: =DR8 -> 4124.621 | M23: =ED8 -> 5898.325 | N23: =EP8 -> 2581.07 | O23: =FB8 -> 6140.304 | P23: =FN8 -> 5232.867 | Q23: =FZ8 -> 3502.721 | R23: =GL8 -> 3509.11 | S23: =GX8 -> 5357.424894 | T23: =HJ8 -> 2605.566013 | U23: =HV8 -> 3815.84 | V23: =IH8 -> 5088.919467 | W23: =IT8 -> 5556.387089 | X23: =JF8 -> 3834.436004 | Y23: =JR8 -> 3672.272087 | Z23: =KD8 -> 4657.92307 | AA23: =KP8 -> 5550.04054 | AB23: =LB8 -> 3836.8 | AC23: =LN8 -> 3428.936438 | AD23: =LZ8 -> 2616.62727 | AE23: =ML8 -> 4716.523323 | AF23: =MX8 -> 5895.323831 | AG23: =NB8 -> 7238.649603 | AH23: - | AI23: - | AJ23: - | AK23: - | AL23: - | AM23: - | AN23: - | AO23: - | AP23: -
B24: Reservas embalses hiperanuales (GWh) | C24: =N9 -> 2938.757 | D24: =Z9 -> 2821.068 | E24: =AL9 -> 3692.512 | F24: =AX9 -> 3282.608 | G24: =BJ9 -> 2613.719 | H24: =BV9 -> 2644.991 | I24: =CH9 -> 4868.099 | J24: =CT9 -> 7387.141 | K24: =DF9 -> 5343.06 | L24: =DR9 -> 3725.698 | M24: =ED9 -> 4497.157 | N24: =EP9 -> 3897.584 | O24: =FB9 -> 4575.158 | P24: =FN9 -> 5235.985 | Q24: =FZ9 -> 3864.052 | R24: =GL9 -> 3139.431 | S24: =GX9 -> 4493.663 | T24: =HJ9 -> 3027.664 | U24: =HV9 -> 3096.022 | V24: =IH9 -> 4047.835 | W24: =IT9 -> 6741.147 | X24: =JF9 -> 5856.245 | Y24: =JR9 -> 3407.177 | Z24: =KD9 -> 6009.107 | AA24: =KP9 -> 6275.663 | AB24: =LB9 -> 4807.4 | AC24: 3842.967768 | AD24: =LZ9 -> 2266.784716 | AE24: =ML9 -> 3455.696506 | AF24: =MX9 -> 3556.609095 | AG24: =NB9 -> 5244.315756 | AH24: - | AI24: - | AJ24: - | AK24: - | AL24: - | AM24: - | AN24: - | AO24: - | AP24: -
B25: Total reservas (GWh) | C25: =N10 -> 5474.859 | D25: =Z10 -> 5152.835 | E25: =AL10 -> 7050.822 | F25: =AX10 -> 7355.852 | G25: =BJ10 -> 6227.088 | H25: =BV10 -> 7430.269 | I25: =CH10 -> 10191.032 | J25: =CT10 -> 13873.023 | K25: =DF10 -> 8698.401 | L25: =DR10 -> 7850.319 | M25: =ED10 -> 10395.482 | N25: =EP10 -> 6478.654 | O25: =FB10 -> 10715.462 | P25: =FN10 -> 10468.852 | Q25: =FZ10 -> 7366.773 | R25: =GL10 -> 6648.541 | S25: =GX10 -> 9851.087894 | T25: =HJ10 -> 5633.230013 | U25: =HV10 -> 6911.862 | V25: =IH10 -> 9136.754467 | W25: =IT10 -> 12297.53409 | X25: =JF10 -> 9690.681004 | Y25: =JR10 -> 7079.449087 | Z25: =KD10 -> 10667.03007 | AA25: =KP10 -> 11825.70354 | AB25: =LB10 -> 8644.2 | AC25: 7271.904206 | AD25: 4883.411986 | AE25: 8172.219829 | AF25: 9451.932926 | AG25: 12482.96536 | AH25: - | AI25: - | AJ25: - | AK25: - | AL25: - | AM25: - | AN25: - | AO25: - | AP25: -
B27: Reservas hidroeléctricas anuales peninsulares (%) | C27: 1990 | D27: 1991 | E27: 1992 | F27: 1993 | G27: 1994 | H27: 1995 | I27: 1996 | J27: 1997 | K27: 1998 | L27: 1999 | M27: 2000 | N27: 2001 | O27: 2002 | P27: 2003 | Q27: 2004 | R27: 2005 | S27: 2006 | T27: 2007 | U27: 2008 | V27: 2009 | W27: 2010 | X27: 2011 | Y27: 2012 | Z27: 2013 | AA27: 2014 | AB27: 2015 | AC27: 2016 | AD27: 2017 | AE27: 2018 | AF27: 2019 | AG27: 2020 | AH27: 2021 | AI27: 2022 | AJ27: 2023 | AK27: 2024 | AL27: 2025 | AM27: 2026 | AN27: 2027 | AO27: 2028 | AP27: 2029
B28: Llenado embalses anuales (%) | C28: =N13 -> 31.5437573 | D28: =Z13 -> 29.03114798 | E28: =AL13 -> 41.05037203 | F28: =AX13 -> 49.78938263 | G28: =BJ13 -> 44.26006336 | H28: =BV13 -> 58.61474637 | I28: =CH13 -> 65.20046855 | J28: =CT13 -> 79.44540075 | K28: =DF13 -> 41.09948507 | L28: =DR13 -> 50.52237587 | M28: =ED13 -> 72.24843026 | N28: =EP13 -> 30.88901093 | O28: =FB13 -> 73.48422064 | P28: =FN13 -> 62.62444876 | Q28: =FZ13 -> 41.91888917 | R28: =GL13 -> 41.99534966 | S28: =GX13 -> 63.91240667 | T28: =HJ13 -> 31.08358921 | U28: =HV13 -> 45.52178009 | V28: =IH13 -> 60.70922074 | W28: =IT13 -> 61.96567489 | X28: =JF13 -> 42.76221419 | Y28: =JR13 -> 40.95373749 | Z28: =KD13 -> 51.94586734 | AA28: =KP13 -> 61.89489721 | AB28: =LB13 -> 42.788 | AC28: =LN13 -> 38.24002128 | AD28: =LZ13 -> 29.18102575 | AE28: =ML13 -> 52.59938629 | AF28: =MX13 -> 65.75 | AG28: =NB13 -> 80.72652261 | AH28: - | AI28: - | AJ28: - | AK28: - | AL28: - | AM28: - | AN28: - | AO28: - | AP28: -
B29: Llenado embalses hiperanuales (%) | C29: =N14 -> 29.40150926 | D29: =Z14 -> 28.22406103 | E29: =AL14 -> 36.79538316 | F29: =AX14 -> 32.06843438 | G29: =BJ14 -> 25.53392797 | H29: =BV14 -> 25.83943021 | I29: =CH14 -> 47.55740354 | J29: =CT14 -> 72.16641353 | K29: =DF14 -> 55.98192589 | L29: =DR14 -> 39.03601107 | M29: =ED14 -> 47.11897487 | N29: =EP14 -> 40.83694711 | O29: =FB14 -> 47.93623057 | P29: =FN14 -> 54.86004728 | Q29: =FZ14 -> 40.48561549 | R29: =GL14 -> 32.89339696 | S29: =GX14 -> 47.08236648 | T29: =HJ14 -> 31.72235791 | U29: =HV14 -> 32.43857905 | V29: =IH14 -> 42.41120238 | W29: =IT14 -> 70.43163485 | X29: =JF14 -> 61.18616156 | Y29: =JR14 -> 35.5982515 | Z29: =KD14 -> 62.7832667 | AA29: =KP14 -> 65.56824897 | AB29: =LB14 -> 50.228 | AC29: 40.15140192 | AD29: =LZ14 -> 23.68341076 | AE29: =ML14 -> 36.10518424 | AF29: 37.15952094 | AG29: =NB14 -> 54.79271293 | AH29: - | AI29: - | AJ29: - | AK29: - | AL29: - | AM29: - | AN29: - | AO29: - | AP29: -
B30: Llenado total reservas (%) | C30: =N15 -> 30.35650601 | D30: =Z15 -> 28.58365533 | E30: =AL15 -> 38.70631034 | F30: =AX15 -> 39.94010384 | G30: =BJ15 -> 33.842487 | H30: =BV15 -> 40.38144025 | I30: =CH15 -> 55.38541738 | J30: =CT15 -> 75.39601183 | K30: =DF15 -> 49.12072978 | L30: =DR15 -> 44.33152694 | M30: =ED15 -> 58.70431384 | N30: =EP15 -> 36.1931772 | O30: =FB15 -> 59.8622206 | P30: =FN15 -> 58.48452711 | Q30: =FZ15 -> 41.1546782 | R30: =GL15 -> 37.14225555 | S30: =GX15 -> 54.95201849 | T30: =HJ15 -> 31.42367251 | U30: =HV15 -> 38.55622572 | V30: =IH15 -> 50.96727445 | W30: =IT15 -> 66.3366436 | X30: =JF15 -> 52.27448424 | Y30: =JR15 -> 38.18870414 | Z30: =KD15 -> 57.54120841 | AA30: =KP15 -> 63.79144594 | AB30: =LB15 -> 46.629 | AC30: 39.22686565 | AD30: 26.3426113 | AE30: 44.08344228 | AF30: 50.98660441 | AG30: 67.33691634 | AH30: - | AI30: - | AJ30: - | AK30: - | AL30: - | AM30: - | AN30: - | AO30: - | AP30: -

Sheet Año (hidden)
X1: 1 | Z1: 1
B2: 1990 | C2: 1990-1999 | D2: Conjunto | N2: Producible | P2: Mensual
B3: 1991 | C3: 2000-2009 | D3: Anual | N3: Reservas | P3: Anual
B4: 1992 | C4: 2010-2019 | D4: Hiperanual
B5: 1993 | C5: 2020-2029
B6: 1994
B7: 1995 | C7: 1990-1999
B8: 1996 | C8: 2000-2009
B9: 1997 | C9: 2010-2019
B10: 1998 | C10: 2020-2029
B11: 1999
B12: 2000
B13: 2001
B14: 2002
B15: 2003
B16: 2004
B17: 2005
B18: 2006
B19: 2007
B20: 2008
B21: 2009
B22: 2010
B23: 2011
B24: 2012
B25: 2013
B26: 2014
B27: 2015
B28: 2016
B29: 2017
B30: 2018
B31: 2019
B32: 2020
